Workbook

Sheet fPM_min
A1: Key f_b | B1: Primary Fuel | C1: fPM_Min_lb_per_MWh_Rank | D1: Reason_for_Removal as top ranked unit for fPM new source floor | E1: facility_ID | F1: facility_name | G1: Boiler ID | H1: Unit ID | I1: Unit Type | J1: Boiler Type | K1: MMBtu/hr Capacity | L1: MWe Capacity | M1: Heat Rate (MMBtu/MWh) | N1: Fuel Types | O1: Emission Factor | P1: Final_EF_Units | Q1: From | R1: Report_id | S1: Submittal_ID_ERT | T1: MaxOfEF_Changed | U1: Submitted_EF | V1: lb/MMBtu (min) | W1: MaxOf1mg_corrected | X1: Config_heat_rate_MMBtu/MWh | Y1: lb/MWh (Min)
A2: 4125_9 | B2: petroleum coke | C2: 1 | D2: Air Pollution Control system does not include a RACT/BACT/LAER flue gas desulfurization system consistent with the requirements for a newly constructed source. FGD systems can increase the loading on fPM control devices. Therefore this source was not considered as representative of a future new source. | E2: 4125 | F2: Manitowoc | G2: 9 | H2: B-09 | I2: Fluidized bed firing | J2: Fluidized bed firing | K2: 1244 | L2: 63.37 | M2: 19.6307401 | N2: petroleum coke, subbituminous, other--wood charcoal/paper pellets | O2: 0.0002177526746 | P2: lb/MMBtu | Q2: ERT | S2: 2095 | U2: 0.0001091387009 | V2: 0.0002177526746 | W2: Corrected | X2: 19.6307401 | Y2: =V2*X2 -> 0.004274646161
A3: 667_1A | B3: petroleum coke | C3: 2 | E3: 667 | F3: Northside Generating Station | G3: 1A | H3: 1A | I3: Fluidized bed firing | J3: Fluidized bed firing | K3: 2764 | L3: 310 | M3: 8.916129032 | N3: petroleum coke, bituminous | O3: 0.0005 | P3: lb/MMBtu | Q3: Part II | U3: =O3 -> 0.0005 | V3: =U3 -> 0.0005 | X3: 8.916129032 | Y3: =V3*X3 -> 0.004458064516
A4: 667_2A | B4: petroleum coke | C4: 3 | E4: 667 | F4: Northside Generating Station | G4: 2A | H4: 2A | I4: Fluidized bed firing | J4: Fluidized bed firing | K4: 2764 | L4: 310 | M4: 8.916129032 | N4: petroleum coke, bituminous | O4: 0.001382840544 | P4: lb/MMBtu | Q4: Part II | R4: N2_2009_PM | U4: 0.00075 | V4: 0.001382840544 | W4: Corrected | X4: 8.916129032 | Y4: 0.01232958472
A5: 10373_CB1302 | B5: petroleum coke | C5: 4 | E5: 10373 | F5: Hanford | G5: CB1302 | H5: 1A | I5: Fluidized bed firing | J5: Fluidized bed firing | K5: 290 | L5: 27.06 | M5: 10.71692535 | N5: petroleum coke | O5: 0.003375962694 | P5: lb/MMBtu | Q5: Part II | R5: 2008 Emission Compliance and RATA Report\08015.4c | U5: 0.003375962694 | V5: 0.003375962694 | X5: 10.71692535 | Y5: 0.03617994018
A6: 50931_BLR1 | B6: petroleum coke | C6: 5 | E6: 50931 | F6: Yellowstone Energy LP | G6: BLR1 | H6: Config1 | I6: Fluidized bed firing | J6: Fluidized bed firing | K6: 518 | L6: 30 | M6: 17.26666667 | N6: petroleum coke | O6: 0.004984536016 | P6: lb/MMBtu | Q6: Part II | R6: 3/24/08 to 3/26/08 Testing | V6: 0.004984536016 | X6: 17.26666667 | Y6: 0.08606632187
A7: 50931_BLR2 | B7: petroleum coke | C7: 6 | E7: 50931 | F7: Yellowstone Energy LP | G7: BLR2 | H7: Config1 | I7: Fluidized bed firing | J7: Fluidized bed firing | K7: 518 | L7: 30 | M7: 17.26666667 | N7: petroleum coke | O7: 0.004984536016 | P7: lb/MMBtu | Q7: Part II | R7: 3/24/08 to 3/26/08 Testing | V7: 0.004984536016 | X7: 17.26666667 | Y7: 0.08606632187
A8: 10670_AAB001 | B8: petroleum coke | C8: 7 | E8: 10670 | F8: AES Deepwater | G8: AAB001 | H8: Deepwater | I8: Conventional Boiler | J8: Arch firing | K8: 1817.6 | L8: 158 | M8: 11.50379747 | N8: petroleum coke | O8: 0.009101034299 | P8: lb/MMBtu | Q8: ERT | S8: 2214 | U8: 0.009101034299 | V8: 0.009101034299 | X8: 11.50379747 | Y8: 0.1046964553
A9: 2878_1 | B9: petroleum coke | C9: 8 | E9: 2878 | F9: Bay Shore | G9: 1 | H9: Unit 1 | I9: Fluidized bed firing | J9: Fluidized bed firing | K9: 1218 | L9: 151 | M9: 8.066225166 | N9: petroleum coke | O9: 0.03520727731 | P9: lb/MMBtu | Q9: ERT | S9: 2280 | U9: 0.03520727731 | V9: 0.03520727731 | X9: 8.066225166 | Y9: 0.2839898263

Sheet fPM_Variability
B1: Filter | C1: facility_ID | D1: boiler_id | E1: configuration_id | F1: compound | G1: From | H1: Report_id | I1: Submittal_ID_ERT | J1: lb/MMBtu | K1: Config_heat_rate_MMBtu/MWh | L1: lb/MWh | M1: fPM_Min_lb_per_MWh_Rank | N1: Explanation of Excluded Tests | O1: Explanation of Excluded Sources
A2: =C2&"_"&D2 -> 4125_9 | B2: =VLOOKUP(A2,fPM_min!A:A,1,FALSE) -> 4125_9 | C2: 4125 | D2: 9 | E2: B-09 | F2: Filterable Particulate | G2: ERT | I2: 2095 | J2: 0.0002177526746 | K2: 19.6307401 | M2: =VLOOKUP(A2,fPM_min!A:C,3,FALSE) -> 1 | O2: Unit does not have RACT/BACT/LAER level FGD Controls
A3: 667_1A | B3: =VLOOKUP(A3,fPM_min!A:A,1,FALSE) -> 667_1A | C3: 667 | D3: 1A | E3: 1A | F3: Filterable Particulate | G3: ERT | H3: ERT | I3: 1507 | J3: =VLOOKUP(H3,QA_Calcs!N$212:O$214,2,FALSE) -> 0.000685728348 | K3: 8.916129032 | L3: =VLOOKUP(H3,QA_Calcs!N$202:O$204,2,FALSE) -> 0.006114042431 | M3: =VLOOKUP(A3,fPM_min!A:C,3,FALSE) -> 2
A4: 667_1A | B4: =VLOOKUP(A4,fPM_min!A:A,1,FALSE) -> 667_1A | C4: 667 | D4: 1A | E4: 1A | F4: Filterable Particulate | G4: Part II | H4: N1_2007_PM | J4: 0.0007812559673 | K4: 8.916129032 | L4: =J4*K4 -> 0.006965779012 | M4: =VLOOKUP(A4,fPM_min!A:C,3,FALSE) -> 2 | N4: Firing > 10% Coal
A5: 667_1A | B5: =VLOOKUP(A5,fPM_min!A:A,1,FALSE) -> 667_1A | C5: 667 | D5: 1A | E5: 1A | F5: Filterable Particulate | G5: Part II | H5: N1_2009_PM | J5: =VLOOKUP(H5,QA_Calcs!N$212:O$214,2,FALSE) -> 0.0005 | K5: 8.916129032 | L5: =VLOOKUP(H5,QA_Calcs!N$202:O$204,2,FALSE) -> 0.004458064516 | M5: =VLOOKUP(A5,fPM_min!A:C,3,FALSE) -> 2
A6: 667_1A | B6: =VLOOKUP(A6,fPM_min!A:A,1,FALSE) -> 667_1A | C6: 667 | D6: 1A | E6: 1A | F6: Filterable Particulate | G6: Part II | H6: N1_2008_PM | J6: =VLOOKUP(H6,QA_Calcs!N$212:O$214,2,FALSE) -> 0.001066666667 | K6: 8.916129032 | L6: =VLOOKUP(H6,QA_Calcs!N$202:O$204,2,FALSE) -> 0.009510537634 | M6: =VLOOKUP(A6,fPM_min!A:C,3,FALSE) -> 2
A7: 667_1A | B7: =VLOOKUP(A7,fPM_min!A:A,1,FALSE) -> 667_1A | C7: 667 | D7: 1A | E7: 1A | F7: Filterable Particulate | G7: Part II | H7: N1_2006_PM | J7: 0.0013 | K7: 8.916129032 | L7: =J7*K7 -> 0.01159096774 | M7: =VLOOKUP(A7,fPM_min!A:C,3,FALSE) -> 2 | N7: Firing > 10% Coal
A8: 667_1A | B8: =VLOOKUP(A8,fPM_min!A:A,1,FALSE) -> 667_1A | C8: 667 | D8: 1A | E8: 1A | F8: Filterable Particulate | G8: Part II | H8: N1_2005_PM | J8: 0.003 | K8: 8.916129032 | L8: =J8*K8 -> 0.0267483871 | M8: =VLOOKUP(A8,fPM_min!A:C,3,FALSE) -> 2 | N8: Firing > 10% Coal
A9: 667_2A | B9: =VLOOKUP(A9,fPM_min!A:A,1,FALSE) -> 667_2A | C9: 667 | D9: 2A | E9: 2A | F9: Filterable Particulate | G9: Part II | H9: N2_2009_PM | J9: 0.001382840544 | K9: 8.916129032 | M9: =VLOOKUP(A9,fPM_min!A:C,3,FALSE) -> 3
A10: 667_2A | B10: =VLOOKUP(A10,fPM_min!A:A,1,FALSE) -> 667_2A | C10: 667 | D10: 2A | E10: 2A | F10: Filterable Particulate | G10: ERT | I10: 1909 | J10: 0.001385037587 | K10: 8.916129032 | M10: =VLOOKUP(A10,fPM_min!A:C,3,FALSE) -> 3
A11: 667_2A | B11: =VLOOKUP(A11,fPM_min!A:A,1,FALSE) -> 667_2A | C11: 667 | D11: 2A | E11: 2A | F11: Filterable Particulate | G11: Part II | H11: N2_2008_PM | J11: 0.002866666667 | K11: 8.916129032 | M11: =VLOOKUP(A11,fPM_min!A:C,3,FALSE) -> 3
A12: 667_2A | B12: =VLOOKUP(A12,fPM_min!A:A,1,FALSE) -> 667_2A | C12: 667 | D12: 2A | E12: 2A | F12: Filterable Particulate | G12: Part II | H12: N2_2007_PM | J12: 0.0036 | K12: 8.916129032 | M12: =VLOOKUP(A12,fPM_min!A:C,3,FALSE) -> 3
A13: 667_2A | B13: =VLOOKUP(A13,fPM_min!A:A,1,FALSE) -> 667_2A | C13: 667 | D13: 2A | E13: 2A | F13: Filterable Particulate | G13: Part II | H13: N2_2006_PM | J13: 0.003666666667 | K13: 8.916129032 | M13: =VLOOKUP(A13,fPM_min!A:C,3,FALSE) -> 3
A14: 667_2A | B14: =VLOOKUP(A14,fPM_min!A:A,1,FALSE) -> 667_2A | C14: 667 | D14: 2A | E14: 2A | F14: Filterable Particulate | G14: Part II | H14: N2_2005_PM | J14: 0.004633333333 | K14: 8.916129032 | M14: =VLOOKUP(A14,fPM_min!A:C,3,FALSE) -> 3
A15: 10373_CB1302 | B15: =VLOOKUP(A15,fPM_min!A:A,1,FALSE) -> 10373_CB1302 | C15: 10373 | D15: CB1302 | E15: 1A | F15: Filterable Particulate | G15: Part II | H15: 2008 Emission Compliance and RATA Report\08015.4c | J15: 0.003375962694 | K15: 10.71692535 | M15: =VLOOKUP(A15,fPM_min!A:C,3,FALSE) -> 4
A16: 10373_CB1302 | B16: =VLOOKUP(A16,fPM_min!A:A,1,FALSE) -> 10373_CB1302 | C16: 10373 | D16: CB1302 | E16: 1A | F16: Filterable Particulate | G16: Part II | H16: 2005 Emission Compliance and RATA Report\05015.4c | J16: 0.004159234835 | K16: 10.71692535 | M16: =VLOOKUP(A16,fPM_min!A:C,3,FALSE) -> 4
A17: 10373_CB1302 | B17: =VLOOKUP(A17,fPM_min!A:A,1,FALSE) -> 10373_CB1302 | C17: 10373 | D17: CB1302 | E17: 1A | F17: Filterable Particulate | G17: ERT | I17: 1260 | J17: 0.004690444779 | K17: 10.71692535 | M17: =VLOOKUP(A17,fPM_min!A:C,3,FALSE) -> 4
A18: 10373_CB1302 | B18: =VLOOKUP(A18,fPM_min!A:A,1,FALSE) -> 10373_CB1302 | C18: 10373 | D18: CB1302 | E18: 1A | F18: Filterable Particulate | G18: Part II | H18: 2007 Emission Compliance and RATA Report\07015.4c | J18: 0.0102964872 | K18: 10.71692535 | M18: =VLOOKUP(A18,fPM_min!A:C,3,FALSE) -> 4
A19: 10373_CB1302 | B19: =VLOOKUP(A19,fPM_min!A:A,1,FALSE) -> 10373_CB1302 | C19: 10373 | D19: CB1302 | E19: 1A | F19: Filterable Particulate | G19: Part II | H19: 2009 Emission Compliance and RATA Report\09015.4c | J19: 0.01730683003 | K19: 10.71692535 | M19: =VLOOKUP(A19,fPM_min!A:C,3,FALSE) -> 4
A20: 50931_BLR1 | B20: =VLOOKUP(A20,fPM_min!A:A,1,FALSE) -> 50931_BLR1 | C20: 50931 | D20: BLR1 | E20: Config1 | F20: Filterable Particulate | G20: Part II | H20: 3/24/08 to 3/26/08 Testing | J20: 0.004984536016 | K20: 17.26666667 | M20: =VLOOKUP(A20,fPM_min!A:C,3,FALSE) -> 5
A21: 50931_BLR1 | B21: =VLOOKUP(A21,fPM_min!A:A,1,FALSE) -> 50931_BLR1 | C21: 50931 | D21: BLR1 | E21: Config1 | F21: Filterable Particulate | G21: Part II | H21: 3/16/09 to 3/18/09 testing | J21: 0.005347618504 | K21: 17.26666667 | M21: =VLOOKUP(A21,fPM_min!A:C,3,FALSE) -> 5
A22: 50931_BLR1 | B22: =VLOOKUP(A22,fPM_min!A:A,1,FALSE) -> 50931_BLR1 | C22: 50931 | D22: BLR1 | E22: Config1 | F22: Filterable Particulate | G22: Part II | H22: 2/15/06 to 2/16/06 Emission Testing. | J22: 0.007680522105 | K22: 17.26666667 | M22: =VLOOKUP(A22,fPM_min!A:C,3,FALSE) -> 5
A23: 50931_BLR1 | B23: =VLOOKUP(A23,fPM_min!A:A,1,FALSE) -> 50931_BLR1 | C23: 50931 | D23: BLR1 | E23: Config1 | F23: Filterable Particulate | G23: Part II | H23: 2/5/07 to 2/7/07 Emission Testing | J23: 0.01167136407 | K23: 17.26666667 | M23: =VLOOKUP(A23,fPM_min!A:C,3,FALSE) -> 5
A24: 50931_BLR1 | B24: =VLOOKUP(A24,fPM_min!A:A,1,FALSE) -> 50931_BLR1 | C24: 50931 | D24: BLR1 | E24: Config1 | F24: Filterable Particulate | G24: Part II | H24: 3/28/2005 Particulate Retest | J24: 0.0149482324 | K24: 17.26666667 | M24: =VLOOKUP(A24,fPM_min!A:C,3,FALSE) -> 5
A25: 50931_BLR1 | B25: =VLOOKUP(A25,fPM_min!A:A,1,FALSE) -> 50931_BLR1 | C25: 50931 | D25: BLR1 | E25: Config1 | F25: Filterable Particulate | G25: Part II | H25: 2/15/05 to 2/17/05 testing | J25: 0.1028418798 | K25: 17.26666667 | M25: =VLOOKUP(A25,fPM_min!A:C,3,FALSE) -> 5
A26: 50931_BLR2 | B26: =VLOOKUP(A26,fPM_min!A:A,1,FALSE) -> 50931_BLR2 | C26: 50931 | D26: BLR2 | E26: Config1 | F26: Filterable Particulate | G26: Part II | H26: 3/24/08 to 3/26/08 Testing | J26: 0.004984536016 | K26: 17.26666667 | M26: =VLOOKUP(A26,fPM_min!A:C,3,FALSE) -> 6
A27: 50931_BLR2 | B27: =VLOOKUP(A27,fPM_min!A:A,1,FALSE) -> 50931_BLR2 | C27: 50931 | D27: BLR2 | E27: Config1 | F27: Filterable Particulate | G27: Part II | H27: 3/16/09 to 3/18/09 testing | J27: 0.005347618504 | K27: 17.26666667 | M27: =VLOOKUP(A27,fPM_min!A:C,3,FALSE) -> 6
A28: 50931_BLR2 | B28: =VLOOKUP(A28,fPM_min!A:A,1,FALSE) -> 50931_BLR2 | C28: 50931 | D28: BLR2 | E28: Config1 | F28: Filterable Particulate | G28: Part II | H28: 2/15/06 to 2/16/06 Emission Testing. | J28: 0.007680522105 | K28: 17.26666667 | M28: =VLOOKUP(A28,fPM_min!A:C,3,FALSE) -> 6
A29: 50931_BLR2 | B29: =VLOOKUP(A29,fPM_min!A:A,1,FALSE) -> 50931_BLR2 | C29: 50931 | D29: BLR2 | E29: Config1 | F29: Filterable Particulate | G29: Part II | H29: 2/5/07 to 2/7/07 Emission Testing | J29: 0.01167136407 | K29: 17.26666667 | M29: =VLOOKUP(A29,fPM_min!A:C,3,FALSE) -> 6
A30: 50931_BLR2 | B30: =VLOOKUP(A30,fPM_min!A:A,1,FALSE) -> 50931_BLR2 | C30: 50931 | D30: BLR2 | E30: Config1 | F30: Filterable Particulate | G30: Part II | H30: 3/28/2005 Particulate Retest | J30: 0.0149482324 | K30: 17.26666667 | M30: =VLOOKUP(A30,fPM_min!A:C,3,FALSE) -> 6
A31: 50931_BLR2 | B31: =VLOOKUP(A31,fPM_min!A:A,1,FALSE) -> 50931_BLR2 | C31: 50931 | D31: BLR2 | E31: Config1 | F31: Filterable Particulate | G31: Part II | H31: 2/15/05 to 2/17/05 testing | J31: 0.1028418798 | K31: 17.26666667 | M31: =VLOOKUP(A31,fPM_min!A:C,3,FALSE) -> 6
A32: 10670_AAB001 | B32: =VLOOKUP(A32,fPM_min!A:A,1,FALSE) -> 10670_AAB001 | C32: 10670 | D32: AAB001 | E32: Deepwater | F32: Filterable Particulate | G32: ERT | I32: 2214 | J32: 0.009101034299 | K32: 11.50379747 | M32: =VLOOKUP(A32,fPM_min!A:C,3,FALSE) -> 7
A33: 2878_1 | B33: =VLOOKUP(A33,fPM_min!A:A,1,FALSE) -> 2878_1 | C33: 2878 | D33: 1 | E33: Unit 1 | F33: Filterable Particulate | G33: ERT | I33: 2280 | J33: 0.03520727731 | K33: 8.066225166 | M33: =VLOOKUP(A33,fPM_min!A:C,3,FALSE) -> 8

Sheet Promulgated_Mins
A1: key f_b | B1: primary_fuel | C1: ORIS code | D1: Plant Name | E1: physical_state | F1: Unit Number | G1: boiler_id | H1: Unit Type | I1: boiler_type | J1: max_heat_input | K1: MWe_capacity | L1: Boiler_heat_rate | M1: Fuel types | N1: Filterable Particulate - ERT | O1: Filterable Particulate MW - ERT | P1: Filterable Particulate - Part II | Q1: Filterable Particulate MW - Part II | R1: Filterable Particulate - min | S1: Filterable Particulate MW - min | T1: control_group_1 | U1: control_type_1 | V1: install_date_1 | W1: control_group_2 | X1: control_type_2 | Y1: install_date_2 | Z1: control_group_3 | AA1: control_type_3 | AB1: install_date_3 | AC1: control_group_4 | AD1: control_type_4 | AE1: install_date_4 | AF1: control_group_5 | AG1: control_type_5 | AH1: install_date_5 | AI1: control_group_6 | AJ1: control_type_6 | AK1: install_date_6 | AL1: control_group_7 | AM1: control_type_7 | AN1: install_date_7 | AO1: control_group_8 | AP1: control_type_8 | AQ1: install_date_8 | AR1: control_group_9 | AS1: control_type_9 | AT1: install_date_9 | AU1: control_group_10 | AV1: control_type_10 | AW1: install_date_10 | AX1: control_group_11 | AY1: control_type_11 | AZ1: install_date_11 | BA1: control_group_12 | BB1: control_type_12 | BC1: install_date_12
J2: MMBtu/hr | K2: MW | L2: MMBtu/MWh | N2: lb/MMBtu | O2: lb/MW | P2: lb/MMBtu | Q2: lb/MW | R2: lb/MMBtu | S2: lb/MW
A3: =C3&"_"&G3 -> 4125_9 | B3: petroleum coke | C3: 4125 | D3: Manitowoc | E3: WI | F3: B-09 | G3: 9 | H3: Fluidized bed firing | I3: Fluidized bed firing | J3: 1244 | K3: 63.37 | L3: 19.6307401 | M3: petroleum coke, subbituminous, other--wood charcoal/paper pellets | N3: 0.0001515337535 | O3: 0.002974719731 | R3: 0.0001515337535 | S3: 0.002974719731 | T3: NOx control | U3: Selective Noncatalytic Reduction | W3: PM control | X3: Fabric Filter, pulse
A4: =C4&"_"&G4 -> 667_1A | B4: petroleum coke | C4: 667 | D4: Northside Generating Station | E4: FL | F4: 1A | G4: 1A | H4: Fluidized bed firing | I4: Fluidized bed firing | J4: 2764 | K4: 310 | L4: 8.916129032 | M4: petroleum coke, bituminous | N4: 0.000685728348 | O4: 0.006114042431 | P4: 0.0005 | Q4: 0.004458064516 | R4: 0.0005 | S4: 0.004458064516 | T4: NOx control | U4: Selective Noncatalytic Reduction | V4: 2002-05-01 | W4: SO2 control | X4: Dry FGD - Spray Dryer | Y4: 2002-05-01 | Z4: PM control | AA4: Fabric Filter, pulse | AB4: 2002-05-01
A5: 667_2A | B5: petroleum coke | C5: 667 | D5: Northside Generating Station | E5: FL | F5: 2A | G5: 2A | H5: Fluidized bed firing | I5: Fluidized bed firing | J5: 2764 | K5: 310 | L5: 8.916129032 | M5: petroleum coke, bituminous | N5: 0.0005067854417 | O5: 0.004518564389 | P5: 0.00075 | Q5: 0.006687096774 | R5: 0.0005067854417 | S5: 0.004518564389 | T5: NOx control | U5: Selective Noncatalytic Reduction | V5: 2002-02-01 | W5: SO2 control | X5: Dry FGD - Spray Dryer | Y5: 2002-02-01 | Z5: PM control | AA5: Fabric Filter, pulse | AB5: 2002-02-01
A6: 10373_CB1302 | B6: petroleum coke | C6: 10373 | D6: Hanford | E6: CA | F6: 1A | G6: CB1302 | H6: Fluidized bed firing | I6: Fluidized bed firing | J6: 290 | K6: 27.06 | L6: 10.71692535 | M6: petroleum coke | N6: 0.004690444779 | O6: 0.05026714656 | P6: 0.003375962694 | Q6: 0.03617994018 | R6: 0.003375962694 | S6: 0.03617994018 | T6: PM control | U6: Fabric Filter, pulse | V6: 1991-08-01
A7: 50931_BLR2 | B7: petroleum coke | C7: 50931 | D7: Yellowstone Energy LP | E7: MT | F7: Config1 | G7: BLR2 | H7: Fluidized bed firing | I7: Fluidized bed firing | J7: 518 | K7: 30 | L7: 17.26666667 | M7: petroleum coke | P7: 0.004984536016 | Q7: 0.08606632187 | R7: 0.004984536016 | S7: 0.08606632187 | T7: PM control | U7: Fabric Filter, pulse | V7: 1995-07-01
A8: 50931_BLR1 | B8: petroleum coke | C8: 50931 | D8: Yellowstone Energy LP | E8: MT | F8: Config1 | G8: BLR1 | H8: Fluidized bed firing | I8: Fluidized bed firing | J8: 518 | K8: 30 | L8: 17.26666667 | M8: petroleum coke | P8: 0.004984536016 | Q8: 0.08606632187 | R8: 0.004984536016 | S8: 0.08606632187 | T8: PM control | U8: Fabric Filter, pulse | V8: 1995-07-01
A9: 10670_AAB001 | B9: petroleum coke | C9: 10670 | D9: AES Deepwater | E9: TX | F9: Deepwater | G9: AAB001 | H9: Conventional Boiler | I9: Arch firing | J9: 1817.6 | K9: 158 | L9: 11.50379747 | M9: petroleum coke | N9: 0.007892817201 | O9: 0.09079737053 | R9: 0.007892817201 | S9: 0.09079737053 | T9: NOx control | U9: Selective Catalytic Reduction | V9: 2007-03-01 | W9: PM control | X9: Electrostatic precipitator, cold side, w/o flue gas conditioning | Y9: 31260 | Z9: SO2 control | AA9: Wet FGD - Spray Type | AB9: 31260 | AC9: Other control | AD9: Wet electrostatic precipitator | AE9: 31260
A10: 2878_1 | B10: petroleum coke | C10: 2878 | D10: Bay Shore | E10: OH | F10: Unit 1 | G10: 1 | H10: Fluidized bed firing | I10: Fluidized bed firing | J10: 1218 | K10: 151 | L10: 8.066225166 | M10: petroleum coke | N10: 0.03208322704 | O10: 0.2587905334 | R10: 0.03208322704 | S10: 0.2587905334 | T10: PM control | U10: Fabric Filter, unspecified | V10: 2000-12-01

Sheet UPL Pooled Template
B1: Emissions (lb/MW)
A2: Averages | B2: 667 Northside 1A
A3: 1 | B3: 0.004458064516
A4: 2 | B4: 0.009510537634
A5: 3 | B5: 0.006114042431
A6: 4
A7: 5
A8: 6
A9: 7
A10: 8
A11: 9
A12: 10
A13: 11
A14: 12
A15: 13
A16: 14
A17: 15
A18: 16
A19: 17
A20: 18
A21: 19
A22: 20
A23: 21
A24: 22
A25: 23
A26: 24
A27: 25
A28: 26
A29: 27
A30: 28
A31: 29
A32: 30
A33: 31
A34: 32
A35: 33
A36: 34
A37: 35
A38: Use for large sample sets and small sample sets that are Normal.
A40: Testing Normality | B40: Raw Data
A41: Sample Size | B41: =COUNT(B3:L37) -> 3
A42: Kurtosis | B42: =KURT(B3:L37) -> 
A43: SE Kurtosis | B43: =SQRT((B41^2-1)/((B41-3)*(B41+5))) -> 
A44: Result Kurtosis | B44: =IF(ABS(B42/B43)>NORMSINV(1-0.05/2),"non normal","normal") ->  | D44: Because only 3 test averages have to use different template to test for normality.
A45: Skewness | B45: =SKEW(B3:L37) -> 0.9621843457 | D45: Used "PetCoke_fPM_New_nonnormal n<3" to test for normality.
A46: SE Skewness | B46: =SQRT((6*B41*(B41-1))/((B41-2)*(B41+1)*(B41+3))) -> 1.224744871 | D46: Data is normal, proceed using UPL Pooled Template.
A47: Result Skewness | B47: =IF(ABS(B45/B46)>NORMSINV(1-0.05/2),"non normal","normal") -> normal
A50: ni = number test Averages = | B50: =COUNT(B3:B37) -> 3 | C50: 0 | D50: 0 | E50: 0 | F50: 0 | G50: 0 | H50: 0 | I50: 0 | J50: 0 | K50: 0 | L50: 0
A52: Total Number of sources = | B52: =COUNTA(B2:L2) -> 1
A55: n =Total # test Averages = | B55: =SUM(B50:L50) -> 3
B60: =B55-1 -> 2
A65: This step is for QC only:
A67: means | B67: =AVERAGE(B3:B37) -> 0.006694214861
B74: =AVERAGE(B3:L37) -> 0.006694214861
A75: Mean =
A79: Pooled Variance = | D79: =VAR(B3:L37) -> 6.634321188e-06
A85: m= number future Averages = | B85: ='UPL Normal'!C78 -> 1
A88: Term1 | B88: =1/B55+1/B85 -> 1.333333333
A92: Term2 | B92: =D79*B88 -> 8.845761585e-06
A98: Squared root Term2 | C98: =SQRT(B92) -> 0.002974182507
A101: NOTE: the pvalue for the t-statistic is calculated as: 2*alpha, where 1-alpha is desired confidence, so if 99% confidence is desired then alpha=0.01 and 2*alpha=2*(0.01)
A104: t-statistic | B104: = quantile t-distribution with df degrees of freedom at .99 confidence level = | H104: =TINV(2*0.01,B60) -> 6.964556734
A107: UPL POOLED VARIANCE = | F107: =B74+H104*C98 -> 0.02740807767

Sheet UPL Normal
A1: Emissions (lb/MW) | B1: fPM
B2: 667
A3: ORIS/Facility/Unit | B3: Northside
A4: Averages | B4: 1A
A5: 1 | B5: 0.004458064516
A6: 2 | B6: 0.009510537634
A7: 3 | B7: 0.006114042431
A8: 4
A9: 5
A10: 6
A11: 7
A12: 8
A13: 9
A14: 10
A15: 11
A16: 12
A17: 13
A18: 14
A19: 15
A20: 16
A21: 17
A22: 18
A23: 19
A24: 20
A25: 21
A26: 22
A27: 23
A28: 24
A29: 25
A30: 26
A31: 27
A32: 28
A33: 29
A34: 30
A35: 31
A36: 32
A37: 33
A38: 34
A39: 35
A41: ni = number test Averages = | B41: =COUNT(B5:B39) -> 3
A45: Total Number of sources = | C45: =COUNTA(B2:Q2) -> 1
A48: n =Total # test Averages = | C48: =SUM(B41:B41) -> 3
C53: =C48-1 -> 2
A58: This step is for QC only:
A60: means | B60: =AVERAGE(B5:B39) -> 0.006694214861
H66: Distribution of Normal Tests | I66: Distribution of Log Tests
C67: =AVERAGE(B5:B39) -> 0.006694214861
A68: UPL Mean = | G68: Skewness = | H68: =SKEW(B5:GG39) -> 0.9621843457 | I68: =SKEW(M64:Q66) -> 
G69: SE Skewness | H69: =SQRT(6/H74) -> 1.414213562 | I69: =SQRT(6/I74) -> 
G70: Skewness Test | H70: =IF(H68>2*H69,"non-normal","normal") -> normal | I70: =IF(I68>2*I69,"non-normal","normal") -> 
G71: Kurtosis = | H71: =KURT(B5:GG39) ->  | I71: =KURT(M64:Q66) -> 
A72: Pooled Variance = | C72: =VAR(B5:H39) -> 6.634321188e-06 | G72: SE Kurtosis | H72: =SQRT(24/H74) -> 2.828427125 | I72: =SQRT(24/I74) -> 
G73: Kurtosis Test | H73: =IF(H71>2*H72,"non-normal","normal") ->  | I73: =IF(I71>2*I72,"non-normal","normal") -> 
G74: Number of test Averages = | H74: =COUNT(B5:GG39) -> 3 | I74: =COUNT(M64:Q66) -> 0 | J74: Result: | K74: Insufficient number of data points for Kurtosis test, because Kurtosis test requires at least 4 data points.
A78: m= number future Averages = | C78: 1
A81: Term1 | C81: =1/C48+1/C78 -> 1.333333333
A85: Term2 | C85: =C72*C81 -> 8.845761585e-06
A91: Squared root Term2 | C91: =SQRT(C85) -> 0.002974182507
A94: NOTE: the pvalue for the t-statistic is calculated as: 2*alpha, where 1-alpha is desired confidence, so if 99% confidence is desired then alpha=0.01 and 2*alpha=2*(0.01)
A97: t-statistic | B97: = quantile t-distribution with df degrees of freedom at .99 confidence level = | C97: =TINV(2*0.01,C53) -> 6.964556734
A100: UPL POOLED VARIANCE = | C100: =C67+C97*C91 -> 0.02740807767 | D100: =IFERROR(IF(FIND("MM",A$1,1)>0,"lb/MMBtu","lb/MW"),"lb/MW") -> lb/MW
B106: UPL Value | C106: DO NOT USE THIS SPREADSHEET USE NON NORMAL TEMPLATE

Sheet QA_Calcs
I1: Anthracite | K1: Anthracite | N1: fPM | O1: 30B | Q1: μg/dscm | R1: No | T1: μg/dscm | U1: =1/453592370 -> 2.204622622e-09 | V1: lbs/μg | W1: 0.02831684659 | AA1: cm/cf | AG1: lb/hr | AJ1: lb/MMBtu | AQ1: Round to | AU1: From | AW1: original database export===>
I2: Bituminous | K2: Bituminous | N2: Se | O2: M5 | Q2: lb/dscf | R2: Yes | T2: ppm | U2: =U1/1000 -> 2.204622622e-12 | V2: lb/mg | AQ2: Same | AU2: Min | AW2: original database export===>
I3: Lignite | K3: Lignite | N3: Pb | O3: M5B | Q3: ppm | V3: lb/scf | AQ3: Sig Figs | AU3: Test | AW3: original database export===>
I4: Oil | K4: Oil | N4: Hg | O4: M29 | Q4: ppm @ 3% O2 | V4: lb/gr | AQ4: as Submitted | AU4: Sheet | AW4: original database export===>
I5: Pet Coke | K5: Pet Coke | N5: HCl | O5: OTM27 | Q5: ppm @ 7% O2 | AQ5: prior to | AW5: original database export===>
I6: Subbituminous | K6: Sub Bituminous | N6: SO2 | O6: 26A | Q6: gr/dscf | AQ6: Calc % Diff. | AW6: original database export===>
O7: M6C | AW7: original database export===>
O8: M17 | AW8: original database export===>
A9: RTI | G9: As Submitted | U9: RTI-QA | AC9: As Submitted | AL9: RTI-QA | AT9: Final for UPL | AV9: Final for UPL | AW9: original database export===>
A10: Comments | C10: Use Run in UPL Calc? | D10: Grade | E10: Key | F10: Facility_Name | G10: Facility_ID | H10: Boiler_ID | I10: Fuel1 Used | J10: Fuel1 Fraction | K10: Fuel2 Used | L10: Fuel2 Fraction | M10: "Fuel Used/Fraction" Data Source | N10: Pollutant | O10: Reference Method | P10: Concentration | Q10: Concentration UOM | R10: Non-Detect? | S10: MDL | T10: MDL UOM | U10: HAP Conversion Value to lbs | V10: HAP Conversion UOM | W10: Volume Conversion Value to cubic feet | X10: Reserve | Y10: Reserve | Z10: Reserve | AA10: Volume Conversion UOM | AB10: Submited F Factor | AC10: Bws (percent) | AD10: %O2d | AE10: %CO2d | AF10: Emission Rate Value | AG10: Emission Rate UOM | AH10: Emission Rate MDL | AI10: Emission Factor Value | AJ10: Emission Factor UOM | AK10: Emission Factor MDL | AL10: Fd | AM10: Fw | AN10: Fc | AO10: Calculated conc lb/dscf | AP10: 19-1 lb/MMBtu | AQ10: %diff 19-1 | AR10: 19-6 lb/MMBtu | AS10: %diff 19-6 | AT10: lb/MMBtu Value Used for UPL Calcs | AU10: Unit Heat Rate (MMBtu/MWh) | AV10: lb/MWh Value Used in UPL Calcs | AW10: original database export===> | AX10: Key | AY10: RTI Calculated QA lb/MMBtu | AZ10: Run Grade | BA10: Submitted Value | BB10: Submitted Value UOM | BC10: Use ? | BD10: Comment | BE10: facility_id | BF10: configuration_id | BG10: submittal_id | BH10: Compound | BI10: RunDate | BJ10: Method | BK10: RunNumber | BL10: RunStartTime | BM10: RunEndTime | BN10: NetTravPts | BO10: Mass_TOOL | BP10: mass | BQ10: units | BR10: Vmstd | BS10: Cd | BT10: Vwstd | BU10: PercH20 | BV10: PercCO2 | BW10: PercO2 | BX10: Fd | BY10: 19-1 | BZ10: 19-5 | CA10: Fc | CB10: 19-6 | CC10: 19-9 | CD10: Fw | CE10: FuelType | CF10: lb/mmBtuO2 | CG10: CountOfComments | CH10: AvgOfStackTemp | CI10: AvgOfDryGasInlet | CJ10: AvgOfDryGasOutlet | CK10: AvgOfOrificePresDesired | CL10: AvgOfOrificePresActual | CM10: AvgOfProbeTemp | CN10: AvgOfFilterTemp | CO10: AvgOfImpingTemp | CP10: CountOfNotes | CQ10: M29 Isokinetic (+/- 10%) | CR10: OTM27 includes all fractions? | CS10: QA Comment | CT10: Questions for EPA | CV10: average of runs
C11: Yes | D11: A | E11: 5_fPM_T1_R1 | F11: Northside | G11: 667 | H11: 1A | I11: Pet Coke | J11: >90 | K11: Bituminous | L11: <10 | M11: ERT | N11: fPM | O11: M29 | P11: =BS11 -> 7.651656873e-08 | Q11: lb/dscf | S11: =1/ROUND((BN11-BM11)*24,0)*0.00000220462*0.028317*IF(AB11<>"",AB11,AL11)*IF(AD11<>"",20.9/(20.9-AD11),20.9/(20.9-6)) -> 6.994089534e-07 | T11: lb/MMBtu | AC11: =BU11 -> 11.00 | AD11: =BW11 -> 4.8 | AE11: =BV11 -> 15.6 | AI11: =CF11 -> 0.0009638604862 | AJ11: lb/MMBtu | AL11: =VLOOKUP($I11,$A$91:$E$98,3,FALSE) -> 9830 | AN11: =VLOOKUP($I11,$A$91:$E$98,5,FALSE) -> 1850 | AP11: =IF(AD11<>"",P11*AL11*20.9/(20.9-AD11),"no O2 data for run") -> 0.0009764036954 | AQ11: =(AP11-$AI11)/$AI11 -> 0.01301351121 | AR11: =IF(AE11<>"",P11*AN11*100/AE11,"no CO2 data for run") -> 0.0009074080266 | AS11: =(AR11-$AI11)/$AI11 -> -0.05856911904 | AT11: =AI11 -> 0.0009638604862 | AU11: 8.916129032 | AV11: =AT11*AU11 -> 0.008593904464 | AW11: original database export===> | AX11: 5_fPM_T1_R1 | AY11: 0.0009629942856 | AZ11: A | BA11: 0.0009638604862 | BB11: lb/mmBtuO2 | BC11: Yes | BE11: 667 | BF11: 1A | BG11: 1507 | BH11: Filterable Particulate | BI11: 2010-05-18 | BJ11: Method 29 | BK11: 1 | BL11: 08:30 | BM11: 12:46 | BN11: 48 | BO11: 5.55 | BP11: 5.55 | BQ11: mg | BR11: 159.765 | BS11: 7.651656873e-08 | BT11: 19.74 | BU11: 11.00 | BV11: 15.6 | BW11: 4.8 | BX11: 9695 | BY11: 0.0009629942856 | BZ11: 0.0008570649142 | CA11: 0 | CB11: 0 | CC11: 0 | CD11: 0 | CE11: Override | CF11: 0.0009638604862 | CG11: 49 | CH11: 197.7291667 | CI11: 94.72916667 | CJ11: 94.72916667 | CK11: 1.474264777 | CL11: 1.5209375 | CM11: 254.5416667 | CN11: 252.5 | CO11: 52.9375 | CP11: 0 | CQ11: 102.1 | CV11: =AVERAGE(AV11:AV13) -> 0.006114042431
C12: Yes | D12: A | E12: 5_fPM_T1_R2 | F12: Northside | G12: 667 | H12: 1A | I12: Pet Coke | J12: >90 | K12: Bituminous | L12: <10 | M12: ERT | N12: fPM | O12: M29 | P12: =BS12 -> 4.25549299e-08 | Q12: lb/dscf | S12: =1/ROUND((BN12-BM12)*24,0)*0.00000220462*0.028317*IF(AB12<>"",AB12,AL12)*IF(AD12<>"",20.9/(20.9-AD12),20.9/(20.9-6)) -> 7.037339205e-07 | T12: lb/MMBtu | AC12: =BU12 -> 10.85 | AD12: =BW12 -> 4.8 | AE12: =BV12 -> 15.2 | AI12: =CF12 -> 0.0005372704548 | AJ12: lb/MMBtu | AL12: =VLOOKUP($I12,$A$91:$E$98,3,FALSE) -> 9830 | AN12: =VLOOKUP($I12,$A$91:$E$98,5,FALSE) -> 1850 | AP12: =IF(AD12<>"",P12*AL12*20.9/(20.9-AD12),"no O2 data for run") -> 0.0005430299804 | AQ12: =(AP12-$AI12)/$AI12 -> 0.01071997439 | AR12: =IF(AE12<>"",P12*AN12*100/AE12,"no CO2 data for run") -> 0.0005179382916 | AS12: =(AR12-$AI12)/$AI12 -> -0.03598218194 | AT12: =AI12 -> 0.0005372704548 | AU12: 8.916129032 | AV12: =AT12*AU12 -> 0.004790372701 | AW12: original database export===> | AX12: 5_fPM_T1_R2 | AY12: 0.0005367876215 | AZ12: A | BA12: 0.0005372704548 | BB12: lb/mmBtuO2 | BC12: Yes | BE12: 667 | BF12: 1A | BG12: 1507 | BH12: Filterable Particulate | BI12: 2010-05-18 | BJ12: Method 29 | BK12: 2 | BL12: 15:45 | BM12: 19:32 | BN12: 48 | BO12: 3.15 | BP12: 3.15 | BQ12: mg | BR12: 163.044 | BS12: 4.25549299e-08 | BT12: 19.85 | BU12: 10.85 | BV12: 15.2 | BW12: 4.8 | BX12: 9717 | BY12: 0.0005367876215 | BZ12: 0.0004785461646 | CA12: 0 | CB12: 0 | CC12: 0 | CD12: 0 | CE12: Override | CF12: 0.0005372704548 | CG12: 49 | CH12: 197.1041667 | CI12: 102.5416667 | CJ12: 102.5416667 | CK12: 1.594131518 | CL12: 1.660125 | CM12: 254.6666667 | CN12: 254.0833333 | CO12: 52.47916667 | CP12: 0 | CQ12: 100.7
C13: Yes | D13: A | E13: 5_fPM_T1_R3 | F13: Northside | G13: 667 | H13: 1A | I13: Pet Coke | J13: >90 | K13: Bituminous | L13: <10 | M13: ERT | N13: fPM | O13: M29 | P13: 4.351466303e-08 | Q13: lb/dscf | S13: =1/ROUND((BN13-BM13)*24,0)*0.00000220462*0.028317*IF(AB13<>"",AB13,AL13)*IF(AD13<>"",20.9/(20.9-AD13),20.9/(20.9-6)) -> 6.957024153e-07 | T13: lb/MMBtu | AC13: 10.75 | AD13: 4.7 | AE13: 15.2 | AI13: 0.0005560541028 | AJ13: lb/MMBtu | AL13: 9830 | AN13: 1850 | AP13: =IF(AD13<>"",P13*AL13*20.9/(20.9-AD13),"no O2 data for run") -> 0.0005518491961 | AQ13: -0.007562046161 | AR13: 0.000529619254 | AS13: -0.04754006615 | AT13: 0.0005560541028 | AU13: 8.916129032 | AV13: 0.00495785013 | AW13: original database export===> | AX13: 5_fPM_T1_R3 | AY13: 0.000555554389 | AZ13: A | BA13: 0.0005560541028 | BB13: lb/mmBtuO2 | BC13: Yes | BE13: 667 | BF13: 1A | BG13: 1507 | BH13: Filterable Particulate | BI13: 2010-05-19 | BJ13: Method 29 | BK13: 3 | BL13: 09:30 | BM13: 13:39 | BN13: 48 | BO13: 3.15 | BP13: 3.15 | BQ13: mg | BR13: 159.448 | BS13: 4.351466303e-08 | BT13: 19.21 | BU13: 10.75 | BV13: 15.2 | BW13: 4.7 | BX13: 9896 | BY13: 0.000555554389 | BZ13: 0.0004958322922 | CA13: 0 | CB13: 0 | CC13: 0 | CD13: 0 | CE13: Override | CF13: 0.0005560541028 | CG13: 49 | CH13: 198.8125 | CI13: 100.5208333 | CJ13: 100.5208333 | CK13: 1.496576943 | CL13: 1.553222917 | CM13: 254.2083333 | CN13: 254.8958333 | CO13: 54.35416667 | CP13: 0 | CQ13: 101.6
A14: Hidden Header for Raw Data in columns AW-CT | AW14: original database export===> | AX14: Key | AY14: RTI Calculated QA lb/MMBtu | AZ14: Run Grade | BA14: Submitted Value | BB14: Submitted Value UOM | BC14: Use ? | BD14: Comment | BE14: facility_id | BF14: configuration_id | BG14: report_id | BH14: sampling_port_id | BI14: order | BJ14: pollutant_id | BK14: pollutant_name | BL14: run_id | BM14: start_datetime | BN14: end_datetime | BO14: unit_load | BP14: fuel_flow_rate | BQ14: fuel_heating_value | BR14: fg_moisture_content | BS14: fg_oxygen_content | BT14: fg_CO2_content | BU14: fg_temperature | BV14: test_method | BW14: conc | BX14: conc_units | BY14: conc_ND | BZ14: conc_MDL | CA14: conc2 | CB14: conc2_units | CC14: emission_rate | CD14: emission_rate_units | CE14: emission_rate_ND | CF14: emission_rate_MDL | CG14: Calculated conc lb/dscf | CH14: 19-1 lb/MMBtu | CI14: %diff 19-1 | CJ14: 19-6 lb/MMBtu | CK14: %diff 19-6 | CL14: emission_factor | CM14: emission_factor_units | CN14: emission_factor_ND | CO14: emission_factor_MDL | CP14: run_pollutant_comment | CQ14: Fuel1 | CR14: Fuel1%Btu | CS14: Fuel2 | CT14: Fuel2%Btu | CU14: QA Comment
A15: Burned >10% coal during testing. The EPA provided direction on 8/3/2012 to exclude runs where >10 percent coal was fired in a pet coke unit. | C15: No | D15: Do Not Use | E15: 5_fPM_T2_R1 | F15: Northside | G15: 667 | H15: 1A | I15: Pet Coke | J15: 77.27 | K15: Bituminous | L15: 22.73 | M15: Part II | N15: fPM | O15: M17 | P15: =BW15 -> 2.86e-07 | Q15: lb/dscf | R15: No | AC15: =BR15 -> 9.06 | AD15: =BS15 -> 3.6 | AE15: =BT15 -> 15.02 | AF15: =CC15 -> 10.53 | AG15: lb/hr | AI15: =CL15 -> 0.003 | AJ15: lb/MMBtu | AL15: 9830 | AN15: 1850 | AP15: =IF(AD15<>"",P15*AL15*20.9/(20.9-AD15),"no O2 data for run") -> 0.003396407052 | AQ15: =(AP15-$AI15)/$AI15 -> 0.132135684 | AR15: 0.003522636485 | AS15: =(AR15-$AI15)/$AI15 -> 0.1742121616 | AT15: =AI15 -> 0.003 | AU15: 8.916129032 | AV15: =AT15*AU15 -> 0.0267483871 | AW15: original database export===> | AX15: 5_fPM_T2_R1 | AY15: n/a | AZ15: C | BA15: 0.003 | BB15: pound per million British Thermal Unit (lb/MMBtu) | BC15: Yes | BD15: =A15 -> Burned >10% coal during testing. The EPA provided direction on 8/3/2012 to exclude runs where >10 percent coal was fired in a pet coke unit. | BE15: 667 | BF15: 1A | BG15: N1_2005_PM | BH15: 1AStack | BI15: 5 | BJ15: 1 | BK15: PM (Filterable) | BL15: 1 | BM15: 2005-06-14T09:25:00 | BN15: 2005-06-14T11:35:00 | BO15: 297.32 | BP15: 192921 | BQ15: 15017.1 | BR15: 9.06 | BS15: 3.6 | BT15: 15.02 | BU15: 222 | BV15: Method 17 | BW15: 2.86e-07 | BX15: pound per dry standard cubic foot (lb/dscf) | BY15: FALSE | CC15: 10.53 | CD15: pound per hour (lb/hr) | CE15: FALSE | CL15: 0.003 | CM15: pound per million British Thermal Unit (lb/MMBtu) | CN15: FALSE | CP15: gr/dscf | CV15: =AVERAGE(AV15:AV17) -> 0.0267483871
A16: Burned >10% coal during testing. The EPA provided direction on 8/3/2012 to exclude runs where >10 percent coal was fired in a pet coke unit. | C16: No | D16: Do Not Use | E16: 5_fPM_T2_R2 | F16: Northside | G16: 667 | H16: 1A | I16: Pet Coke | J16: 77.27 | K16: Bituminous | L16: 22.73 | M16: Part II | N16: fPM | O16: M17 | P16: =BW16 -> 2.82e-07 | Q16: lb/dscf | R16: No | AC16: =BR16 -> 9.56 | AD16: 3.59 | AE16: 14.99 | AF16: =CC16 -> 10.33 | AG16: lb/hr | AI16: =CL16 -> 0.003 | AJ16: lb/MMBtu | AL16: 9830 | AN16: 1850 | AP16: =IF(AD16<>"",P16*AL16*20.9/(20.9-AD16),"no O2 data for run") -> 0.003346970191 | AQ16: =(AP16-$AI16)/$AI16 -> 0.1156567302 | AR16: 0.003480320213 | AS16: =(AR16-$AI16)/$AI16 -> 0.1601067378 | AT16: =AI16 -> 0.003 | AU16: 8.916129032 | AV16: 0.0267483871 | AW16: original database export===> | AX16: 5_fPM_T2_R2 | AY16: n/a | AZ16: C | BA16: 0.003 | BB16: pound per million British Thermal Unit (lb/MMBtu) | BC16: Yes | BD16: Burned >10% coal during testing. The EPA provided direction on 8/3/2012 to exclude runs where >10 percent coal was fired in a pet coke unit. | BE16: 667 | BF16: 1A | BG16: N1_2005_PM | BH16: 1AStack | BI16: 5 | BJ16: 1 | BK16: PM (Filterable) | BL16: 2 | BM16: 2005-06-14T12:00:00 | BN16: 2005-06-14T14:05:00 | BO16: 297.32 | BP16: 192921 | BQ16: 15017.7 | BR16: 9.56 | BS16: 3.59 | BT16: 14.99 | BU16: 226 | BV16: Method 17 | BW16: 2.82e-07 | BX16: pound per dry standard cubic foot (lb/dscf) | BY16: FALSE | CC16: 10.33 | CD16: pound per hour (lb/hr) | CE16: FALSE | CL16: 0.003 | CM16: pound per million British Thermal Unit (lb/MMBtu) | CN16: FALSE | CP16: lb/dscf
A17: Burned >10% coal during testing. The EPA provided direction on 8/3/2012 to exclude runs where >10 percent coal was fired in a pet coke unit. | C17: No | D17: Do Not Use | E17: 5_fPM_T2_R3 | F17: Northside | G17: 667 | H17: 1A | I17: Pet Coke | J17: 77.27 | K17: Bituminous | L17: 22.73 | M17: Part II | N17: fPM | O17: M17 | P17: 2.82e-07 | Q17: lb/dscf | R17: No | AC17: 9.56 | AD17: 3.59 | AE17: 14.99 | AF17: 10.33 | AG17: lb/hr | AI17: 0.003 | AJ17: lb/MMBtu | AL17: 9830 | AN17: 1850 | AP17: 0.003346970191 | AQ17: 0.1156567302 | AR17: 0.003480320213 | AS17: 0.1601067378 | AT17: 0.003 | AU17: 8.916129032 | AV17: 0.0267483871 | AW17: original database export===> | AX17: 5_fPM_T2_R3 | AY17: n/a | AZ17: C | BA17: 0.003 | BB17: pound per million British Thermal Unit (lb/MMBtu) | BC17: Yes | BD17: Burned >10% coal during testing. The EPA provided direction on 8/3/2012 to exclude runs where >10 percent coal was fired in a pet coke unit. | BE17: 667 | BF17: 1A | BG17: N1_2005_PM | BH17: 1AStack | BI17: 5 | BJ17: 1 | BK17: PM (Filterable) | BL17: 3 | BM17: 2005-06-14T14:20:00 | BN17: 2005-06-14T16:26:00 | BO17: 297.32 | BP17: 192921 | BQ17: 15017.7 | BR17: 9.56 | BS17: 3.59 | BT17: 14.99 | BU17: 226 | BV17: Method 17 | BW17: 2.82e-07 | BX17: pound per dry standard cubic foot (lb/dscf) | BY17: FALSE | CC17: 10.33 | CD17: pound per hour (lb/hr) | CE17: FALSE | CL17: 0.003 | CM17: pound per million British Thermal Unit (lb/MMBtu) | CN17: FALSE | CP17: lb/dscf
A18: Burned >10% coal during testing. The EPA provided direction on 8/3/2012 to exclude runs where >10 percent coal was fired in a pet coke unit. | C18: No | D18: Do Not Use | E18: 5_fPM_T3_R1 | F18: Northside | G18: 667 | H18: 1A | I18: Pet Coke | J18: 81.78 | K18: Bituminous | L18: 18.22 | M18: Part II | N18: fPM | O18: M17 | P18: 0.0007 | Q18: gr/dscf | R18: No | U18: =1/$A$80 -> 0.0001428571429 | V18: lb/gr | AC18: 10.12 | AD18: 4.6 | AE18: 15.2 | AF18: 3.99 | AG18: lb/hr | AI18: 0.0013 | AJ18: lb/MMBtu | AL18: 9830 | AN18: 1850 | AO18: =P18*U18 -> 1e-07 | AP18: =IF(AD18<>"",AO18*AL18*20.9/(20.9-AD18),"no O2 data for run") -> 0.001260411043 | AQ18: -0.03045304389 | AR18: =IF(AE18<>"",AO18*AN18*100/AE18,"no CO2 data for run") -> 0.001217105263 | AS18: -0.06376518219 | AT18: 0.0013 | AU18: 8.916129032 | AV18: 0.01159096774 | AW18: original database export===> | AX18: 5_fPM_T3_R1 | AY18: n/a | AZ18: C | BA18: 0.0013 | BB18: pound per million British Thermal Unit (lb/MMBtu) | BC18: Yes | BD18: Burned >10% coal during testing. The EPA provided direction on 8/3/2012 to exclude runs where >10 percent coal was fired in a pet coke unit. | BE18: 667 | BF18: 1A | BG18: N1_2006_PM | BH18: 1AStack | BI18: 5 | BJ18: 1 | BK18: PM (Filterable) | BL18: 1 | BM18: 2006-02-23T08:26:00 | BN18: 2006-02-23T10:31:00 | BO18: 299.55 | BP18: 196803 | BQ18: 15152.3 | BR18: 10.12 | BS18: 4.6 | BT18: 15.2 | BU18: 233.3 | BV18: Method 17 | BW18: 0.0007 | BX18: grains per dry standard cubic foot (gr/dscf) | BY18: FALSE | CC18: 3.99 | CD18: pound per hour (lb/hr) | CE18: FALSE | CL18: 0.0013 | CM18: pound per million British Thermal Unit (lb/MMBtu) | CN18: FALSE | CP18: gr/scf | CV18: =AVERAGE(AV18:AV20) -> 0.01159096774
A19: Burned >10% coal during testing. The EPA provided direction on 8/3/2012 to exclude runs where >10 percent coal was fired in a pet coke unit. | C19: No | D19: Do Not Use | E19: 5_fPM_T3_R2 | F19: Northside | G19: 667 | H19: 1A | I19: Pet Coke | J19: 81.78 | K19: Bituminous | L19: 18.22 | M19: Part II | N19: fPM | O19: M17 | P19: 0.0007 | Q19: gr/dscf | R19: No | U19: =1/$A$80 -> 0.0001428571429 | V19: lb/gr | AC19: 9.58 | AD19: 4.2 | AE19: 15 | AF19: 3.89 | AG19: lb/hr | AI19: 0.0013 | AJ19: lb/MMBtu | AL19: 9830 | AN19: 1850 | AO19: =P19*U19 -> 1e-07 | AP19: =IF(AD19<>"",AO19*AL19*20.9/(20.9-AD19),"no O2 data for run") -> 0.001230221557 | AQ19: -0.05367572547 | AR19: =IF(AE19<>"",AO19*AN19*100/AE19,"no CO2 data for run") -> 0.001233333333 | AS19: -0.05128205128 | AT19: 0.0013 | AU19: 8.916129032 | AV19: 0.01159096774 | AW19: original database export===> | AX19: 5_fPM_T3_R2 | AY19: n/a | AZ19: C | BA19: 0.0013 | BB19: pound per million British Thermal Unit (lb/MMBtu) | BC19: Yes | BD19: Burned >10% coal during testing. The EPA provided direction on 8/3/2012 to exclude runs where >10 percent coal was fired in a pet coke unit. | BE19: 667 | BF19: 1A | BG19: N1_2006_PM | BH19: 1AStack | BI19: 5 | BJ19: 1 | BK19: PM (Filterable) | BL19: 2 | BM19: 2006-02-23T10:47:00 | BN19: 2006-02-23T12:53:00 | BO19: 299.55 | BP19: 196803 | BQ19: 15152.3 | BR19: 9.58 | BS19: 4.2 | BT19: 15 | BU19: 245 | BV19: Method 17 | BW19: 0.0007 | BX19: grains per dry standard cubic foot (gr/dscf) | BY19: FALSE | CC19: 3.89 | CD19: pound per hour (lb/hr) | CE19: FALSE | CL19: 0.0013 | CM19: pound per million British Thermal Unit (lb/MMBtu) | CN19: FALSE | CP19: gr/scf
A20: Burned >10% coal during testing. The EPA provided direction on 8/3/2012 to exclude runs where >10 percent coal was fired in a pet coke unit. | C20: No | D20: Do Not Use | E20: 5_fPM_T3_R3 | F20: Northside | G20: 667 | H20: 1A | I20: Pet Coke | J20: 81.78 | K20: Bituminous | L20: 18.22 | M20: Part II | N20: fPM | O20: M17 | P20: 0.0008 | Q20: gr/dscf | R20: No | U20: 0.0001428571429 | V20: lb/gr | AC20: 9.39 | AD20: 4.2 | AE20: 15 | AF20: 3.88 | AG20: lb/hr | AI20: 0.0013 | AJ20: lb/MMBtu | AL20: 9830 | AN20: 1850 | AO20: 1.142857143e-07 | AP20: 0.001405967494 | AQ20: 0.0815134566 | AR20: 0.00140952381 | AS20: 0.08424908425 | AT20: 0.0013 | AU20: 8.916129032 | AV20: 0.01159096774 | AW20: original database export===> | AX20: 5_fPM_T3_R3 | AY20: n/a | AZ20: C | BA20: 0.0013 | BB20: pound per million British Thermal Unit (lb/MMBtu) | BC20: Yes | BD20: Burned >10% coal during testing. The EPA provided direction on 8/3/2012 to exclude runs where >10 percent coal was fired in a pet coke unit. | BE20: 667 | BF20: 1A | BG20: N1_2006_PM | BH20: 1AStack | BI20: 5 | BJ20: 1 | BK20: PM (Filterable) | BL20: 3 | BM20: 2006-02-23T13:11:00 | BN20: 2006-02-23T15:15:00 | BO20: 299.55 | BP20: 196803 | BQ20: 15152.3 | BR20: 9.39 | BS20: 4.2 | BT20: 15 | BU20: 248.8 | BV20: Method 17 | BW20: 0.0008 | BX20: grains per dry standard cubic foot (gr/dscf) | BY20: FALSE | CC20: 3.88 | CD20: pound per hour (lb/hr) | CE20: FALSE | CL20: 0.0013 | CM20: pound per million British Thermal Unit (lb/MMBtu) | CN20: FALSE | CP20: gr/scf
A21: Burned >10% coal during testing. The EPA provided direction on 8/3/2012 to exclude runs where >10 percent coal was fired in a pet coke unit. | C21: No | D21: Do Not Use | E21: 5_fPM_T4_R1 | F21: Northside | G21: 667 | H21: 1A | I21: Pet Coke | J21: 83.42 | K21: Bituminous | L21: 16.58 | M21: Part II | N21: fPM | O21: M17 | P21: 0.0004 | Q21: gr/dscf | R21: No | U21: 0.0001428571429 | V21: lb/gr | AC21: 9.07 | AD21: 4.5 | AE21: 14.9 | AF21: 1.92 | AG21: lb/hr | AI21: 0.0006 | AJ21: lb/MMBtu | AL21: 9830 | AN21: 1850 | AO21: 5.714285714e-08 | AP21: 0.0007158432056 | AQ21: 0.1930720093 | AR21: 0.0007094918504 | AS21: 0.1824864174 | AT21: 0.0006 | AU21: 8.916129032 | AV21: 0.005349677419 | AW21: original database export===> | AX21: 5_fPM_T4_R1 | AY21: n/a | AZ21: C | BA21: 0.0006 | BB21: pound per million British Thermal Unit (lb/MMBtu) | BC21: Yes | BD21: Burned >10% coal during testing. The EPA provided direction on 8/3/2012 to exclude runs where >10 percent coal was fired in a pet coke unit. | BE21: 667 | BF21: 1A | BG21: N1_2007_PM | BH21: 1AStack | BI21: 5 | BJ21: 1 | BK21: PM (Filterable) | BL21: 1 | BM21: 2007-02-28T08:48:00 | BN21: 2007-02-28T10:54:00 | BO21: 313.07 | BP21: 204537 | BQ21: 14831 | BR21: 9.07 | BS21: 4.5 | BT21: 14.9 | BU21: 230.5 | BV21: Method 17 | BW21: 0.0004 | BX21: grains per dry standard cubic foot (gr/dscf) | BY21: FALSE | CC21: 1.92 | CD21: pound per hour (lb/hr) | CE21: FALSE | CL21: 0.0006 | CM21: pound per million British Thermal Unit (lb/MMBtu) | CN21: FALSE | CP21: gr/scf | CV21: =AVERAGE(AV21:AV23) -> 0.005052473118
A22: Burned >10% coal during testing. The EPA provided direction on 8/3/2012 to exclude runs where >10 percent coal was fired in a pet coke unit. | C22: No | D22: Do Not Use | E22: 5_fPM_T4_R2 | F22: Northside | G22: 667 | H22: 1A | I22: Pet Coke | J22: 83.42 | K22: Bituminous | L22: 16.58 | M22: Part II | N22: fPM | O22: M17 | P22: 0.0003 | Q22: gr/dscf | R22: No | U22: 0.0001428571429 | V22: lb/gr | AC22: 9.37 | AD22: 4.6 | AE22: 15 | AF22: 1.52 | AG22: lb/hr | AI22: 0.0005 | AJ22: lb/MMBtu | AL22: 9830 | AN22: 1850 | AO22: 4.285714286e-08 | AP22: 0.0005401761613 | AQ22: 0.08035232252 | AR22: 0.0005285714286 | AS22: 0.05714285714 | AT22: 0.0005 | AU22: 8.916129032 | AV22: 0.004458064516 | AW22: original database export===> | AX22: 5_fPM_T4_R2 | AY22: n/a | AZ22: C | BA22: 0.0005 | BB22: pound per million British Thermal Unit (lb/MMBtu) | BC22: Yes | BD22: Burned >10% coal during testing. The EPA provided direction on 8/3/2012 to exclude runs where >10 percent coal was fired in a pet coke unit. | BE22: 667 | BF22: 1A | BG22: N1_2007_PM | BH22: 1AStack | BI22: 5 | BJ22: 1 | BK22: PM (Filterable) | BL22: 2 | BM22: 2007-02-28T11:07:00 | BN22: 2007-02-28T13:12:00 | BO22: 313.07 | BP22: 204537 | BQ22: 14831 | BR22: 9.37 | BS22: 4.6 | BT22: 15 | BU22: 230.8 | BV22: Method 17 | BW22: 0.0003 | BX22: grains per dry standard cubic foot (gr/dscf) | BY22: FALSE | CC22: 1.52 | CD22: pound per hour (lb/hr) | CE22: FALSE | CL22: 0.0005 | CM22: pound per million British Thermal Unit (lb/MMBtu) | CN22: FALSE | CP22: gr/scf
A23: Burned >10% coal during testing. The EPA provided direction on 8/3/2012 to exclude runs where >10 percent coal was fired in a pet coke unit. | C23: No | D23: Do Not Use | E23: 5_fPM_T4_R3 | F23: Northside | G23: 667 | H23: 1A | I23: Pet Coke | J23: 83.42 | K23: Bituminous | L23: 16.58 | M23: Part II | N23: fPM | O23: M17 | P23: 0.0003 | Q23: gr/dscf | R23: No | U23: 0.0001428571429 | V23: lb/gr | AC23: 9.07 | AD23: 4.6 | AE23: 15 | AF23: 1.64 | AG23: lb/hr | AI23: 0.0006 | AJ23: lb/MMBtu | AL23: 9830 | AN23: 1850 | AO23: 4.285714286e-08 | AP23: 0.0005401761613 | AQ23: -0.0997063979 | AR23: 0.0005285714286 | AS23: -0.119047619 | AT23: 0.0006 | AU23: 8.916129032 | AV23: 0.005349677419 | AW23: original database export===> | AX23: 5_fPM_T4_R3 | AY23: n/a | AZ23: C | BA23: 0.0006 | BB23: pound per million British Thermal Unit (lb/MMBtu) | BC23: Yes | BD23: =A23 -> Burned >10% coal during testing. The EPA provided direction on 8/3/2012 to exclude runs where >10 percent coal was fired in a pet coke unit. | BE23: 667 | BF23: 1A | BG23: N1_2007_PM | BH23: 1AStack | BI23: 5 | BJ23: 1 | BK23: PM (Filterable) | BL23: 3 | BM23: 2007-02-28T13:23:00 | BN23: 2007-02-28T15:36:00 | BO23: 313.07 | BP23: 204537 | BQ23: 14831 | BR23: 9.07 | BS23: 4.6 | BT23: 15 | BU23: 224.9 | BV23: Method 17 | BW23: 0.0003 | BX23: grains per dry standard cubic foot (gr/dscf) | BY23: FALSE | CC23: 1.64 | CD23: pound per hour (lb/hr) | CE23: FALSE | CL23: 0.0006 | CM23: pound per million British Thermal Unit (lb/MMBtu) | CN23: FALSE | CP23: gr/scf
A24: Facility did not provide f-Factor. For QA Calcs, used f-Factor for Pet Coke = 9830 from 40 CFR Part 75 Appendix F Section 3.3.5, Table 1 "F and Fc Factors."QA calcs were within 10.4% of reported values. | C24: Yes | D24: C | E24: 5_fPM_T5_R1 | F24: Northside | G24: 667 | H24: 1A | I24: Pet Coke | J24: 92.06 | K24: Bituminous | L24: 7.94 | M24: Part II | N24: fPM | O24: M17 | P24: 0.0005 | Q24: gr/dscf | R24: No | U24: 0.0001428571429 | V24: lb/gr | AC24: 10.06 | AD24: 4.53 | AE24: 14.86 | AF24: 3.08 | AG24: lb/hr | AI24: 0.001 | AJ24: lb/MMBtu | AL24: 9830 | AN24: 1850 | AO24: 7.142857143e-08 | AP24: 0.0008964438433 | AQ24: -0.1035561567 | AR24: 0.0008892520669 | AS24: -0.1107479331 | AT24: 0.001 | AU24: 8.916129032 | AV24: 0.008916129032 | AW24: original database export===> | AX24: 5_fPM_T5_R1 | AY24: n/a | AZ24: C | BA24: 0.001 | BB24: pound per million British Thermal Unit (lb/MMBtu) | BC24: Yes | BD24: =A24 -> Facility did not provide f-Factor. For QA Calcs, used f-Factor for Pet Coke = 9830 from 40 CFR Part 75 Appendix F Section 3.3.5, Table 1 "F and Fc Factors."QA calcs were within 10.4% of reported values. | BE24: 667 | BF24: 1A | BG24: N1_2008_PM | BH24: 1AStack | BI24: 5 | BJ24: 1 | BK24: PM (Filterable) | BL24: 1 | BM24: 2008-06-10T17:06:00 | BN24: 2008-06-10T19:20:00 | BO24: 299.51 | BP24: 201926 | BQ24: 14618 | BR24: 10.06 | BS24: 4.53 | BT24: 14.86 | BU24: 197.7 | BV24: Method 17 | BW24: 0.0005 | BX24: grains per dry standard cubic foot (gr/dscf) | BY24: FALSE | CC24: 3.08 | CD24: pound per hour (lb/hr) | CE24: FALSE | CL24: 0.001 | CM24: pound per million British Thermal Unit (lb/MMBtu) | CN24: FALSE | CP24: gr/scf | CV24: =AVERAGE(AV24:AV26) -> 0.009510537634
A25: Facility did not provide f-Factor. For QA Calcs, used f-Factor for Pet Coke = 9830 from 40 CFR Part 75 Appendix F Section 3.3.5, Table 1 "F and Fc Factors."QA calcs were within 10.4% of reported values. | C25: Yes | D25: C | E25: 5_fPM_T5_R2 | F25: Northside | G25: 667 | H25: 1A | I25: Pet Coke | J25: 92.06 | K25: Bituminous | L25: 7.94 | M25: Part II | N25: fPM | O25: M17 | P25: 0.0005 | Q25: gr/dscf | R25: No | U25: 0.0001428571429 | V25: lb/gr | AC25: 10.37 | AD25: 4.53 | AE25: 14.47 | AF25: 2.852 | AG25: lb/hr | AI25: 0.001 | AJ25: lb/MMBtu | AL25: 9830 | AN25: 1850 | AO25: 7.142857143e-08 | AP25: 0.0008964438433 | AQ25: -0.1035561567 | AR25: 0.0009132194689 | AS25: -0.08678053115 | AT25: 0.001 | AU25: 8.916129032 | AV25: 0.008916129032 | AW25: original database export===> | AX25: 5_fPM_T5_R2 | AY25: n/a | AZ25: C | BA25: 0.001 | BB25: pound per million British Thermal Unit (lb/MMBtu) | BC25: Yes | BD25: =A25 -> Facility did not provide f-Factor. For QA Calcs, used f-Factor for Pet Coke = 9830 from 40 CFR Part 75 Appendix F Section 3.3.5, Table 1 "F and Fc Factors."QA calcs were within 10.4% of reported values. | BE25: 667 | BF25: 1A | BG25: N1_2008_PM | BH25: 1AStack | BI25: 5 | BJ25: 1 | BK25: PM (Filterable) | BL25: 2 | BM25: 2008-06-11T13:53:00 | BN25: 2008-06-11T16:02:00 | BO25: 299.89 | BP25: 198462 | BQ25: 15111.9 | BR25: 10.37 | BS25: 4.53 | BT25: 14.47 | BU25: 203.7 | BV25: Method 17 | BW25: 0.0005 | BX25: grains per dry standard cubic foot (gr/dscf) | BY25: FALSE | CC25: 2.852 | CD25: pound per hour (lb/hr) | CE25: FALSE | CL25: 0.001 | CM25: pound per million British Thermal Unit (lb/MMBtu) | CN25: FALSE | CP25: gr/scf
A26: Facility did not provide f-Factor. For QA Calcs, used f-Factor for Pet Coke = 9830 from 40 CFR Part 75 Appendix F Section 3.3.5, Table 1 "F and Fc Factors."QA calcs were within 10.4% of reported values. | C26: Yes | D26: C | E26: 5_fPM_T5_R3 | F26: Northside | G26: 667 | H26: 1A | I26: Pet Coke | J26: 92.06 | K26: Bituminous | L26: 7.94 | M26: Part II | N26: fPM | O26: M17 | P26: 0.0007 | Q26: gr/dscf | R26: No | U26: 0.0001428571429 | V26: lb/gr | AC26: 11.2 | AD26: 4.53 | AE26: 14.26 | AF26: 3.636 | AG26: lb/hr | AI26: 0.0012 | AJ26: lb/MMBtu | AL26: 9830 | AN26: 1850 | AO26: 1e-07 | AP26: 0.001255021381 | AQ26: 0.04585115048 | AR26: 0.001297335203 | AS26: 0.08111266947 | AT26: 0.0012 | AU26: 8.916129032 | AV26: 0.01069935484 | AW26: original database export===> | AX26: 5_fPM_T5_R3 | AY26: n/a | AZ26: C | BA26: 0.0012 | BB26: pound per million British Thermal Unit (lb/MMBtu) | BC26: Yes | BD26: Facility did not provide f-Factor. For QA Calcs, used f-Factor for Pet Coke = 9830 from 40 CFR Part 75 Appendix F Section 3.3.5, Table 1 "F and Fc Factors."QA calcs were within 10.4% of reported values. | BE26: 667 | BF26: 1A | BG26: N1_2008_PM | BH26: 1AStack | BI26: 5 | BJ26: 1 | BK26: PM (Filterable) | BL26: 3 | BM26: 2008-06-11T17:14:00 | BN26: 2008-06-11T19:18:00 | BO26: 299.89 | BP26: 198462 | BQ26: 15111.9 | BR26: 11.2 | BS26: 4.53 | BT26: 14.26 | BU26: 202.8 | BV26: Method 17 | BW26: 0.0007 | BX26: grains per dry standard cubic foot (gr/dscf) | BY26: FALSE | CC26: 3.636 | CD26: pound per hour (lb/hr) | CE26: FALSE | CL26: 0.0012 | CM26: pound per million British Thermal Unit (lb/MMBtu) | CN26: FALSE | CP26: gr/scf
A27: Facility did not provide f-Factor. No QA Calcs. | C27: Yes | D27: D | E27: 5_fPM_T6_R1 | F27: Northside | G27: 667 | H27: 1A | I27: Pet Coke | J27: 90 | K27: Bituminous | L27: 10 | M27: Part II | N27: fPM | O27: M17 | P27: Not Submitted | S27: =1/ROUND((BN27-BM27)*24,0)*0.00000220462*0.028317*IF(AB27<>"",AB27,AL27)*IF(AD27<>"",20.9/(20.9-AD27),20.9/(20.9-6)) -> 0.0003958546743 | T27: lb/MMBtu | AC27: 11 | AD27: =BS27 -> 4.7 | AE27: 15 | AF27: 2.5 | AG27: lb/hr | AI27: 0.0008 | AJ27: lb/MMBtu | AK27: =S27 -> 0.0003958546743 | AL27: 9830 | AN27: 1850 | AT27: =IF(AK27>AI27,AK27,AI27) -> 0.0008 | AU27: 8.916129032 | AV27: 0.007132903226 | AW27: original database export===> | AX27: 5_fPM_T6_R1 | AY27: n/a | AZ27: C | BA27: 0.0008 | BB27: pound per million British Thermal Unit (lb/MMBtu) | BC27: Yes | BD27: Facility did not provide f-Factor. No QA Calcs. | BE27: 667 | BF27: 1A | BG27: N1_2009_PM | BH27: 1AStack | BI27: 5 | BJ27: 1 | BK27: PM (Filterable) | BL27: 3 | BM27: 2009-05-05T15:49:00 | BN27: 2009-05-05T17:56:00 | BO27: 299.96 | BP27: 202348 | BQ27: 15031.1 | BR27: 11 | BS27: 4.7 | BT27: 15 | BU27: 197.4 | BV27: Method 17 | BY27: FALSE | CC27: 2.5 | CD27: pound per hour (lb/hr) | CE27: FALSE | CL27: 0.0008 | CM27: pound per million British Thermal Unit (lb/MMBtu) | CN27: FALSE | CP27: gr/dscf | CV27: =AVERAGE(AV27:AV29) -> 0.004458064516
A28: Facility did not provide f-Factor. No QA Calcs. | C28: Yes | D28: D | E28: 5_fPM_T6_R2 | F28: Northside | G28: 667 | H28: 1A | I28: Pet Coke | J28: 90 | K28: Bituminous | L28: 10 | M28: Part II | N28: fPM | O28: M17 | P28: Not Submitted | S28: =1/ROUND((BN28-BM28)*24,0)*0.00000220462*0.028317*IF(AB28<>"",AB28,AL28)*IF(AD28<>"",20.9/(20.9-AD28),20.9/(20.9-6)) -> 0.000272307674 | T28: lb/MMBtu | AC28: 11.5 | AD28: 5.2 | AE28: 14.3 | AF28: 1 | AG28: lb/hr | AI28: 0.0003 | AJ28: lb/MMBtu | AK28: =S28 -> 0.000272307674 | AL28: 9830 | AN28: 1850 | AT28: 0.0003 | AU28: 8.916129032 | AV28: 0.00267483871 | AW28: original database export===> | AX28: 5_fPM_T6_R2 | AY28: n/a | AZ28: C | BA28: 0.0003 | BB28: pound per million British Thermal Unit (lb/MMBtu) | BC28: Yes | BD28: Facility did not provide f-Factor. No QA Calcs. | BE28: 667 | BF28: 1A | BG28: N1_2009_PM | BH28: 1AStack | BI28: 5 | BJ28: 1 | BK28: PM (Filterable) | BL28: 4 | BM28: 2009-05-07T08:20:00 | BN28: 2009-05-07T10:55:00 | BO28: 299.93 | BP28: 204059 | BQ28: 14813 | BR28: 11.5 | BS28: 5.2 | BT28: 14.3 | BU28: 198.3 | BV28: Method 17 | BY28: FALSE | CC28: 1 | CD28: pound per hour (lb/hr) | CE28: FALSE | CL28: 0.0003 | CM28: pound per million British Thermal Unit (lb/MMBtu) | CN28: FALSE
A29: Facility did not provide f-Factor. No QA Calcs. | C29: Yes | D29: D | E29: 5_fPM_T6_R3 | F29: Northside | G29: 667 | H29: 1A | I29: Pet Coke | J29: 90 | K29: Bituminous | L29: 10 | M29: Part II | N29: fPM | O29: M17 | P29: Not Submitted | S29: =1/ROUND((BN29-BM29)*24,0)*0.00000220462*0.028317*IF(AB29<>"",AB29,AL29)*IF(AD29<>"",20.9/(20.9-AD29),20.9/(20.9-6)) -> 0.0002688824203 | T29: lb/MMBtu | AC29: 11.3 | AD29: 5 | AE29: 14.6 | AF29: 1.2 | AG29: lb/hr | AI29: 0.0004 | AJ29: lb/MMBtu | AK29: =S29 -> 0.0002688824203 | AL29: 9830 | AN29: 1850 | AT29: 0.0004 | AU29: 8.916129032 | AV29: 0.003566451613 | AW29: original database export===> | AX29: 5_fPM_T6_R3 | AY29: n/a | AZ29: C | BA29: 0.0004 | BB29: pound per million British Thermal Unit (lb/MMBtu) | BC29: Yes | BD29: Facility did not provide f-Factor. No QA Calcs. | BE29: 667 | BF29: 1A | BG29: N1_2009_PM | BH29: 1AStack | BI29: 5 | BJ29: 1 | BK29: PM (Filterable) | BL29: 5 | BM29: 2009-05-07T11:32:00 | BN29: 2009-05-07T14:05:00 | BO29: 299.93 | BP29: 204059 | BQ29: 14813 | BR29: 11.3 | BS29: 5 | BT29: 14.6 | BU29: 198.3 | BV29: Method 17 | BY29: FALSE | CC29: 1.2 | CD29: pound per hour (lb/hr) | CE29: FALSE | CL29: 0.0004 | CM29: pound per million British Thermal Unit (lb/MMBtu) | CN29: FALSE
AI31: =AVERAGE(AI27:AI29) -> 0.0005 | AU31: 5_fPM_T6 | AV31: 0.004458064516 | AW31: Average
AU32: 5_fPM_T1 | AV32: 0.006114042431 | AW32: Average
AU33: 5_fPM_T5 | AV33: 0.009510537634 | AW33: Average
BG37: 0.005052473118 | BH37: 0.006965779012 | BI37: N1_2007_PM
BG40: 0.01159096774 | BH40: 0.01159096774 | BI40: N1_2006_PM
BG41: 0.0267483871 | BH41: 0.0267483871 | BI41: N1_2005_PM
A79: Conversions
A80: 7000 | C80: gr= | D80: 1 | E80: lb
A81: 1 | C81: ppm SO2= | D81: 1.66e-07 | E81: lb/scf
A82: 1 | C82: ppm Hg= | D82: =D81*A87/A88 -> 5.197930066e-07 | E82: lb/scf
A83: 1000 | C83: mg= | D83: 1 | E83: g
A84: 1000000 | C84: ug= | D84: 1 | E84: g
A85: 454 | C85: g= | D85: 1 | E85: lb
A86: 1 | C86: m^3= | D86: 35.3145 | E86: ft^3
A87: 200.59 | C87: Hg molecular weight
A88: 64.06 | C88: SO2 molecular weight
A90: Table 19-2 | C90: Fd | D90: Fw | E90: Fc
A91: Fuel Type | C91: dscf/MMBtu | D91: wscf/MMBtu | E91: scf/MMBtu
A92: Coal
A93: Anthracite | C93: 10100 | D93: 10540 | E93: 1970
A94: Bituminous | C94: 9780 | D94: 10640 | E94: 1800
A95: Lignite | C95: 9860 | D95: 11950 | E95: 1910
A96: Oil | C96: 9190 | D96: 10320 | E96: 1420
A97: Subbituminous | C97: 9820 | E97: 1840
A98: Pet Coke | C98: 9830 | E98: 1850
A197: 1 | B197: 2 | C197: 3 | D197: 4 | E197: 5 | F197: 6 | G197: 7 | H197: 8 | I197: 9 | J197: 10 | K197: 11 | L197: 12 | M197: 13 | N197: 14 | O197: 15 | P197: 16 | Q197: 17 | R197: 18 | S197: 19 | T197: 20 | U197: 21 | V197: 22 | W197: 23 | X197: 24 | Y197: 25 | Z197: 26 | AA197: 27 | AB197: 28 | AC197: 29 | AD197: 30 | AE197: 31 | AF197: 32 | AG197: 33 | AH197: 34 | AI197: 35 | AJ197: 36 | AK197: 37 | AL197: 38 | AM197: 39 | AN197: 40 | AO197: 41 | AP197: 42 | AQ197: 43 | AR197: 44 | AS197: 45 | AT197: 46 | AU197: 47
B199: Column Source==> | C199: 44 | D199: 44 | E199: 44 | F199: 44 | G199: 44 | H199: 44 | I199: 44 | J199: 44 | K199: 44 | L199: 44
B200: Test Avgs for UPL | C200: R1 | D200: R2 | E200: R3 | F200: R4 | G200: R5 | H200: R6 | I200: R7 | J200: R8 | K200: R9 | L200: R10 | S200: Variability | T200: Variability | U200: Variability | W200: Variability | X200: Variability | Y200: Variability
A201: Test_IDs | B201: lb/MW | C201: lb/MW | D201: lb/MW | E201: lb/MW | F201: lb/MW | G201: lb/MW | H201: lb/MW | I201: lb/MW | J201: lb/MW | K201: lb/MW | L201: lb/MW | M201: Test_IDs | N201: report ID | P201: in UPL sht | S201: as submitted | T201: 1mg | W201: as submitted | X201: 1mg | Y201: report ID
A202: 5_fPM_T6 | B202: =AVERAGE(C202:L202) -> 0.004458064516 | C202: =IFERROR(VLOOKUP($A202&"_"&C$200,$E:DU,C$199,FALSE),VLOOKUP($A202,$E:DU,C$199,FALSE)) -> 0.007132903226 | D202: =IFERROR(VLOOKUP($A202&"_"&D$200,$E:DV,D$199,FALSE),"") -> 0.00267483871 | E202: =IFERROR(VLOOKUP($A202&"_"&E$200,$E$11:$DW$100,E$199,FALSE),"") -> 0.003566451613 | F202: =IFERROR(VLOOKUP($A202&"_"&F$200,$E:AX,F$199,FALSE),"") ->  | G202: =IFERROR(VLOOKUP($A202&"_"&G$200,$E:AY,G$199,FALSE),"") ->  | H202: =IFERROR(VLOOKUP($A202&"_"&H$200,$E:AZ,H$199,FALSE),"") ->  | I202: =IFERROR(VLOOKUP($A202&"_"&I$200,$E:BA,I$199,FALSE),"") ->  | J202: =IFERROR(VLOOKUP($A202&"_"&J$200,$E:BB,J$199,FALSE),"") ->  | K202: =IFERROR(VLOOKUP($A202&"_"&K$200,$E:BC,K$199,FALSE),"") ->  | M202: =A202 -> 5_fPM_T6 | N202: N1_2009_PM | O202: =B202 -> 0.004458064516 | P202: 0.004458064516 | Q202: 0.0003 | R202: 0.0004 | S202: 0.004458064516 | T202: 0.007178394004
A203: 5_fPM_T1 | B203: =AVERAGE(C203:L203) -> 0.006114042431 | C203: =IFERROR(VLOOKUP($A203&"_"&C$200,$E:DU,C$199,FALSE),VLOOKUP($A203,$E:DU,C$199,FALSE)) -> 0.008593904464 | D203: =IFERROR(VLOOKUP($A203&"_"&D$200,$E:DV,D$199,FALSE),"") -> 0.004790372701 | E203: =IFERROR(VLOOKUP($A203&"_"&E$200,$E$11:$DW$100,E$199,FALSE),"") -> 0.00495785013 | F203: =IFERROR(VLOOKUP($A203&"_"&F$200,$E:AX,F$199,FALSE),"") ->  | G203: =IFERROR(VLOOKUP($A203&"_"&G$200,$E:AY,G$199,FALSE),"") ->  | H203: =IFERROR(VLOOKUP($A203&"_"&H$200,$E:AZ,H$199,FALSE),"") ->  | I203: =IFERROR(VLOOKUP($A203&"_"&I$200,$E:BA,I$199,FALSE),"") ->  | J203: =IFERROR(VLOOKUP($A203&"_"&J$200,$E:BB,J$199,FALSE),"") ->  | K203: =IFERROR(VLOOKUP($A203&"_"&K$200,$E:BC,K$199,FALSE),"") ->  | M203: =A203 -> 5_fPM_T1 | N203: ERT | O203: =B203 -> 0.006114042431 | P203: 0.006114042431 | S203: 0.006114042431 | T203: 0.006114042431 | W203: 0.005052473118 | X203: 0.006965779012 | Y203: N1_2007_PM
A204: 5_fPM_T5 | B204: 0.009510537634 | C204: =IFERROR(VLOOKUP($A204&"_"&C$200,$E:DU,C$199,FALSE),VLOOKUP($A204,$E:DU,C$199,FALSE)) -> 0.008916129032 | D204: =IFERROR(VLOOKUP($A204&"_"&D$200,$E:DV,D$199,FALSE),"") -> 0.008916129032 | E204: =IFERROR(VLOOKUP($A204&"_"&E$200,$E$11:$DW$100,E$199,FALSE),"") -> 0.01069935484 | F204: =IFERROR(VLOOKUP($A204&"_"&F$200,$E:AX,F$199,FALSE),"") ->  | G204: =IFERROR(VLOOKUP($A204&"_"&G$200,$E:AY,G$199,FALSE),"") ->  | H204: =IFERROR(VLOOKUP($A204&"_"&H$200,$E:AZ,H$199,FALSE),"") ->  | I204: =IFERROR(VLOOKUP($A204&"_"&I$200,$E:BA,I$199,FALSE),"") ->  | J204: =IFERROR(VLOOKUP($A204&"_"&J$200,$E:BB,J$199,FALSE),"") ->  | K204: =IFERROR(VLOOKUP($A204&"_"&K$200,$E:BC,K$199,FALSE),"") ->  | M204: =A204 -> 5_fPM_T5 | N204: N1_2008_PM | O204: =B204 -> 0.009510537634 | P204: 0.009510537634 | S204: 0.009510537634 | T204: 0.009510537634
W206: 0.01159096774 | X206: 0.01159096774 | Y206: N1_2006_PM
W207: 0.0267483871 | X207: 0.0267483871 | Y207: N1_2005_PM
B209: Column Source==> | C209: 42 | D209: 42 | E209: 42 | F209: 42 | G209: 42 | H209: 42 | I209: 42 | J209: 42 | K209: 42 | L209: 42
B210: Test Avgs for UPL | C210: R1 | D210: R2 | E210: R3 | F210: R4 | G210: R5 | H210: R6 | I210: R7 | J210: R8 | K210: R9 | L210: R10
A211: Test_IDs | B211: lb/MMBtu | C211: lb/MW | D211: lb/MW | E211: lb/MW | F211: lb/MW | G211: lb/MW | H211: lb/MW | I211: lb/MW | J211: lb/MW | K211: lb/MW | L211: lb/MW | M211: Test_IDs | N211: report ID
A212: 5_fPM_T6 | B212: =AVERAGE(C212:L212) -> 0.0005 | C212: =IFERROR(VLOOKUP($A212&"_"&C$210,$E:DU,C$209,FALSE),"") -> 0.0008 | D212: =IFERROR(VLOOKUP($A212&"_"&D$210,$E:DV,D$209,FALSE),"") -> 0.0003 | E212: =IFERROR(VLOOKUP($A212&"_"&E$210,$E:DW,E$209,FALSE),"") -> 0.0004 | F212: =IFERROR(VLOOKUP($A212&"_"&F$210,$E:DX,F$209,FALSE),"") ->  | G212: =IFERROR(VLOOKUP($A212&"_"&G$210,$E:DY,G$209,FALSE),"") ->  | H212: =IFERROR(VLOOKUP($A212&"_"&H$210,$E:DZ,H$209,FALSE),"") ->  | I212: =IFERROR(VLOOKUP($A212&"_"&I$210,$E:EA,I$209,FALSE),"") ->  | J212: =IFERROR(VLOOKUP($A212&"_"&J$210,$E:EB,J$209,FALSE),"") ->  | K212: =IFERROR(VLOOKUP($A212&"_"&K$210,$E:EC,K$209,FALSE),"") ->  | L212: =IFERROR(VLOOKUP($A212&"_"&L$210,$E:ED,L$209,FALSE),"") ->  | M212: =A212 -> 5_fPM_T6 | N212: N1_2009_PM | O212: =B212 -> 0.0005
A213: 5_fPM_T1 | B213: =AVERAGE(C213:L213) -> 0.000685728348 | C213: =IFERROR(VLOOKUP($A213&"_"&C$210,$E:DU,C$209,FALSE),"") -> 0.0009638604862 | D213: =IFERROR(VLOOKUP($A213&"_"&D$210,$E:DV,D$209,FALSE),"") -> 0.0005372704548 | E213: =IFERROR(VLOOKUP($A213&"_"&E$210,$E:DW,E$209,FALSE),"") -> 0.0005560541028 | F213: =IFERROR(VLOOKUP($A213&"_"&F$210,$E:DX,F$209,FALSE),"") ->  | G213: =IFERROR(VLOOKUP($A213&"_"&G$210,$E:DY,G$209,FALSE),"") ->  | H213: =IFERROR(VLOOKUP($A213&"_"&H$210,$E:DZ,H$209,FALSE),"") ->  | I213: =IFERROR(VLOOKUP($A213&"_"&I$210,$E:EA,I$209,FALSE),"") ->  | J213: =IFERROR(VLOOKUP($A213&"_"&J$210,$E:EB,J$209,FALSE),"") ->  | K213: =IFERROR(VLOOKUP($A213&"_"&K$210,$E:EC,K$209,FALSE),"") ->  | L213: =IFERROR(VLOOKUP($A213&"_"&L$210,$E:ED,L$209,FALSE),"") ->  | M213: =A213 -> 5_fPM_T1 | N213: ERT | O213: =B213 -> 0.000685728348
A214: 5_fPM_T5 | B214: 0.001066666667 | C214: =IFERROR(VLOOKUP($A214&"_"&C$210,$E:DU,C$209,FALSE),"") -> 0.001 | D214: =IFERROR(VLOOKUP($A214&"_"&D$210,$E:DV,D$209,FALSE),"") -> 0.001 | E214: =IFERROR(VLOOKUP($A214&"_"&E$210,$E:DW,E$209,FALSE),"") -> 0.0012 | F214: =IFERROR(VLOOKUP($A214&"_"&F$210,$E:DX,F$209,FALSE),"") ->  | G214: =IFERROR(VLOOKUP($A214&"_"&G$210,$E:DY,G$209,FALSE),"") ->  | H214: =IFERROR(VLOOKUP($A214&"_"&H$210,$E:DZ,H$209,FALSE),"") ->  | I214: =IFERROR(VLOOKUP($A214&"_"&I$210,$E:EA,I$209,FALSE),"") ->  | J214: =IFERROR(VLOOKUP($A214&"_"&J$210,$E:EB,J$209,FALSE),"") ->  | K214: =IFERROR(VLOOKUP($A214&"_"&K$210,$E:EC,K$209,FALSE),"") ->  | L214: =IFERROR(VLOOKUP($A214&"_"&L$210,$E:ED,L$209,FALSE),"") ->  | M214: =A214 -> 5_fPM_T5 | N214: N1_2008_PM | O214: =B214 -> 0.001066666667

Sheet Lognormal Template
B1: Emissions (lb/MW)
A2: Averages | B2: 667 Northside 1A
A3: 1 | B3: 0.004458064516
A4: 2 | B4: 0.009510537634
A5: 3 | B5: 0.006114042431
A6: 4
A7: 5
A8: 6
A9: 7
A10: 8
A11: 9
A12: 10
A13: 11
A14: 12
A15: 13
A16: 14
A17: 15
A18: 16
A19: 17
A20: 18
A21: 19
A22: 20
A23: 21
A24: 22
A25: 23
A26: 24
A27: 25
A28: 26
A29: 27
A30: 28
A31: 29
A32: 30
A33: 31
A34: 32
A35: 33
A36: 34
A37: 35
A38: Use for small sample sets that are Lognormal.
A40: Testing Normality | B40: Raw Data | C40: Log Data | E40: =IF(C41<4,"There are an insufficient number of data points to use the Kurtosis test.",IF(C44="normal",IF(C47="normal","lognormal","non-normal"),"non-normal")) -> There are an insufficient number of data points to use the Kurtosis test.
A41: Sample Size | B41: =COUNT(B3:L37) -> 3 | C41: =COUNT(B51:L85) -> 3 | E41: =IF(E40<>"normal","Review Shape of Curve'","Data are normal; use standard UPL template for normal data.") -> Review Shape of Curve'
A42: Kurtosis | B42: =KURT(B3:L37) ->  | C42: =KURT(B51:L85) ->  | E42: lognormal data
A43: SE Kurtosis | B43: =SQRT((B41^2-1)/((B41-3)*(B41+5))) ->  | C43: =SQRT((C41^2-1)/((C41-3)*(C41+5))) -> 
A44: Result Kurtosis | B44: =IF(ABS(B42/B43)>NORMSINV(1-0.05/2),"non normal","normal") ->  | C44: =IF(ABS(C42/C43)>NORMSINV(1-0.05/2),"non normal","normal") -> 
A45: Skewness | B45: =SKEW(B3:L37) -> 0.9621843457 | C45: =SKEW(B51:L85) -> 0.4903257403
A46: SE Skewness | B46: =SQRT((6*B41*(B41-1))/((B41-2)*(B41+1)*(B41+3))) -> 1.224744871 | C46: =SQRT((6*C41*(C41-1))/((C41-2)*(C41+1)*(C41+3))) -> 1.224744871
A47: Result Skewness | B47: =IF(ABS(B45/B46)>NORMSINV(1-0.05/2),"non normal","normal") -> normal | C47: =IF(ABS(C45/C46)>NORMSINV(1-0.05/2),"non normal","normal") -> normal
B49: 1. Take LN( ) of Raw Data
A50: Averages
A51: 1 | B51: =IF(B3>0,LN(B3),"") -> -5.413040572 | C51: =IF(C3>0,LN(C3),"") -> 
A52: 2 | B52: =IF(B4>0,LN(B4),"") -> -4.65535487
A53: 3 | B53: =IF(B5>0,LN(B5),"") -> -5.097167115
A54: 4 | B54: =IF(B6>0,LN(B6),"") -> 
A55: 5 | B55: =IF(B7>0,LN(B7),"") -> 
A56: 6 | B56: =IF(B8>0,LN(B8),"") -> 
A57: 7 | B57: =IF(B9>0,LN(B9),"") -> 
A58: 8 | B58: =IF(B10>0,LN(B10),"") -> 
A59: 9 | B59: =IF(B11>0,LN(B11),"") -> 
A60: 10 | B60: =IF(B12>0,LN(B12),"") -> 
A61: 11 | B61: =IF(B13>0,LN(B13),"") -> 
A62: 12 | B62: =IF(B14>0,LN(B14),"") -> 
A63: 13 | B63: =IF(B15>0,LN(B15),"") -> 
A64: 14 | B64: =IF(B16>0,LN(B16),"") -> 
A65: 15 | B65: =IF(B17>0,LN(B17),"") -> 
A66: 16 | B66: =IF(B18>0,LN(B18),"") -> 
A67: 17 | B67: =IF(B19>0,LN(B19),"") -> 
A68: 18 | B68: =IF(B20>0,LN(B20),"") -> 
A69: 19 | B69: =IF(B21>0,LN(B21),"") -> 
A70: 20 | B70: =IF(B22>0,LN(B22),"") -> 
A71: 21 | B71: =IF(B23>0,LN(B23),"") -> 
A72: 22 | B72: =IF(B24>0,LN(B24),"") -> 
A73: 23 | B73: =IF(B25>0,LN(B25),"") -> 
A74: 24 | B74: =IF(B26>0,LN(B26),"") -> 
A75: 25 | B75: =IF(B27>0,LN(B27),"") -> 
A76: 26 | B76: =IF(B28>0,LN(B28),"") -> 
A77: 27 | B77: =IF(B29>0,LN(B29),"") -> 
A78: 28 | B78: =IF(B30>0,LN(B30),"") -> 
A79: 29 | B79: =IF(B31>0,LN(B31),"") -> 
A80: 30 | B80: =IF(B32>0,LN(B32),"") -> 
A81: 31 | B81: =IF(B33>0,LN(B33),"") -> 
A82: 32 | B82: =IF(B34>0,LN(B34),"") -> 
A83: 33 | B83: =IF(B35>0,LN(B35),"") -> 
A84: 34 | B84: =IF(B36>0,LN(B36),"") -> 
A85: 35 | B85: =IF(B37>0,LN(B37),"") -> 
A87: 2. Calculate sample size, n= | C87: =COUNT(B51:L85) -> 3
A89: Average of Raw Data | C89: =AVERAGE(B3:L37) -> 0.006694214861
A92: 3. Calculate | D92: =AVERAGE(B51:L85) -> -5.055187519
E102: =VAR(B51:L85) -> 0.1448436205
A103: 4. Calculate
A108: 5. m | C108: ='UPL Normal'!C78 -> 1
A110: 6. Calculate
A114: a- Numerator first term | F114: =EXP(4*E102)+2*EXP(3*E102)+3*EXP(2*E102)-3 -> 5.881427157
A117: b- denominator first term | F117: =C108*(EXP(E102)-1)^2 -> 0.02429196664
C121: =F114/F117+3*(1-1/C108) -> 242.1140801
A124: 7. Calculate
F125: =SQRT(EXP(E102)-1)*(EXP(E102)+2)/SQRT(C108) -> 1.245900136
A128: 8. Go to tab distribution for 99 percentile "lognormal distribution 99%"
A130: 9. substitue the values of | E130: in cell D7 and F7 respectively
A133: 10. In column AE indentify the value that is the smallest value that is larger than 0.99, note what row number this is. | J133: =VLOOKUP("x",'lognormal distribution 99 %'!AF:AL,2,FALSE) -> 93 | K133: is the Row number in Column AE with the first value > 0.99.
A136: 11. In column B, go down to the row number from Step 10. above, and copy the z value. | J136: =INDIRECT("'lognormal distribution 99 %'!B" & J133) -> 3.484 | K136: z value from "lognormal distribution 99%"
A138: 12. calculate the UPL using the formula
A146: a- Calculate | D146: =EXP(D92+E102/2) -> 0.006855077166
A149: b- Calculate | D149: =EXP(2*D92+E102) -> 4.699208296e-05
A153: c- Calculate | D153: =EXP(E102)-1 -> 0.1558588035
A157: d-calculate | E157: =(E102)/C87+(E102^2)/(2*(C87-1)) -> 0.05352612544
A161: e- Calculate | H161: =SQRT(C108*D149*D153+C108^2*D149*E157) -> 0.003136787202
A165: f- Calculate UPL | D165: =D146+(J136/C108)*H161 -> 0.01778364378 | E165: lb fPM/MW
D167: =D165 -> 0.01778364378

Sheet lognormal distribution 99 %
P2: distribution of Z
N3: Normal
N4: distribution
A5: ∆z | B5: z | V5: Absolute values
AD6: Cumulative | AE6: normalization
A7: 0.101 | D7: ='Lognormal Template'!C121 -> 242.1140801 | F7: ='Lognormal Template'!F125 -> 1.245900136
B9: -5 | C9: =f(a) | G9: =(1-($F$7/6)*(3*B9-B9^3)+(($D$7-3)*(3-6*B9^2+B9^4))/24) -> 4740.513927 | N9: =NORMDIST(B9,0,1,FALSE) -> 1.486719515e-06 | P9: =G9*N9 -> 0.007047814565 | V9: =ABS(P9) -> 0.007047814565 | Y9: =($A$7/2)*V9 -> 0.0003559146355 | AD9: =Y9 -> 0.0003559146355 | AE9: =AD9/SUM($Y$9:$Y$108) -> 1.271716234e-05 | AF9: =IF(AE9>0.99,"x","") ->  | AG9: 9
A10: 1 | B10: =$B$9+A10*$A$7 -> -4.899 | G10: 4313.66378 | N10: 2.450939756e-06 | P10: 0.01057253005 | V10: 0.01057253005 | Y10: =($A$7)*V10 -> 0.001067825535 | AD10: =Y10+AD9 -> 0.001423740171 | AE10: 5.087156604e-05 | AF10: =IF(AE10>0.99,"x","") ->  | AG10: 10
A11: 2 | B11: -4.798 | G11: 3914.80452 | N11: 3.999502685e-06 | P11: 0.01565727119 | V11: 0.01565727119 | Y11: 0.00158138439 | AD11: 0.003005124561 | AE11: 0.0001073759073 | AG11: 11
A12: 3 | B12: -4.697 | G12: 3542.742956 | N12: 6.460246822e-06 | P12: 0.02288699392 | V12: 0.02288699392 | Y12: 0.002311586386 | AD12: 0.005316710947 | AE12: 0.0001899710478 | AG12: 12
A13: 4 | B13: -4.596 | G13: 3196.310781 | N13: 1.032908833e-05 | P13: 0.03301497639 | V13: 0.03301497639 | Y13: 0.003334512615 | AD13: 0.008651223562 | AE13: 0.0003091162979 | AG13: 13
A14: 5 | B14: -4.495 | G14: 2874.364568 | N14: 1.634724734e-05 | P14: 0.04698794853 | V14: 0.04698794853 | Y14: 0.004745782802 | AD14: 0.01339700636 | AE14: 0.0004786875499 | AG14: 14
A15: 6 | B15: -4.394 | G15: 2575.785774 | N15: 2.560926051e-05 | P15: 0.06596396891 | V15: 0.06596396891 | Y15: 0.00666236086 | AD15: 0.02005936722 | AE15: 0.000716739926 | AG15: 15
A16: 7 | B16: -4.293 | G16: 2299.480739 | N16: 3.971176632e-05 | P16: 0.09131644179 | V16: 0.09131644179 | Y16: 0.00922296062 | AD16: 0.02928232784 | AE16: 0.001046284923 | AG16: 16
A17: 8 | B17: -4.192 | G17: 2044.380684 | N17: 6.095525222e-05 | P17: 0.1246157402 | V17: 0.1246157402 | Y17: 0.01258618976 | AD17: 0.04186851761 | AE17: 0.001496001238 | AG17: 17
A18: 9 | B18: -4.091 | G18: 1809.441711 | N18: 9.261318561e-05 | P18: 0.1675781611 | V18: 0.1675781611 | Y18: 0.01692539427 | AD18: 0.05879391187 | AE18: 0.002100761384 | AG18: 18
A19: 10 | B19: -3.99 | G19: 1593.644808 | N19: 0.0001392849765 | P19: 0.2219707796 | V19: 0.2219707796 | Y19: 0.02241904874 | AD19: 0.08121296061 | AE19: 0.002901814934 | AG19: 19
A20: 11 | B20: -3.889 | G20: 1395.995842 | N20: 0.0002073506921 | P20: 0.2894607041 | V20: 0.2894607041 | Y20: 0.02923553111 | AD20: 0.1104484917 | AE20: 0.003946427766 | AG20: 20
A21: 12 | B21: -3.788 | G21: 1215.525564 | N21: 0.0003055459036 | P21: 0.3713988568 | V21: 0.3713988568 | Y21: 0.03751128454 | AD21: 0.1479597763 | AE21: 0.005286740997 | AG21: 21
A22: 13 | B22: -3.687 | G22: 1051.289606 | N22: 0.0004456739027 | P22: 0.4685323417 | V22: 0.4685323417 | Y22: 0.04732176651 | AD22: 0.1952815428 | AE22: 0.006977591912 | AG22: 22
A23: 14 | B23: -3.586 | G23: 902.3684841 | N23: 0.0006434691113 | P23: 0.5806462465 | V23: 0.5806462465 | Y23: 0.0586452709 | AD23: 0.2539268137 | AE23: 0.009073042215 | AG23: 23
A24: 15 | B24: -3.485 | G24: 767.8675951 | N24: 0.0009196190652 | P24: 0.70614568 | V24: 0.70614568 | Y24: 0.07132071368 | AD24: 0.3252475274 | AE24: 0.01162139793 | AG24: 24
A25: 16 | B25: -3.384 | G25: 646.9172189 | N25: 0.001300942167 | P25: 0.8416018886 | V25: 0.8416018886 | Y25: 0.08500179075 | AD25: 0.4102493181 | AE25: 0.0146585913 | AG25: 25
A26: 17 | B26: -3.283 | G26: 538.6725176 | N26: 0.001821703852 | P26: 0.9813018005 | V26: 0.9813018005 | Y26: 0.09911148185 | AD26: 0.5093608 | AE26: 0.01819993711 | AG26: 26
A27: 18 | B27: -3.182 | G27: 442.3135354 | N27: 0.00252503455 | P27: 1.116856959 | V27: 1.116856959 | Y27: 0.1128025528 | AD27: 0.6221633528 | AE27: 0.02223047768 | AG27: 27
A28: 19 | B28: -3.081 | G28: 357.0451991 | N28: 0.003464388873 | P28: 1.236943415 | V28: 1.236943415 | Y28: 0.1249312849 | AD28: 0.7470946377 | AE28: 0.02669438918 | AG28: 28
A29: 20 | B29: -2.98 | G29: 282.0973175 | N29: 0.004704957527 | P29: 1.327255897 | V29: 1.327255897 | Y29: 0.1340528456 | AD29: 0.8811474833 | AE29: 0.03148422255 | AG29: 29
A30: 21 | B30: -2.879 | G30: 216.724582 | N30: 0.006324912786 | P30: 1.370764079 | V30: 1.370764079 | Y30: 0.138447172 | AD30: 1.019594655 | AE30: 0.03643106932 | AG30: 30
A31: 22 | B31: -2.778 | G31: 160.206566 | N31: 0.008416337402 | P31: 1.348352514 | V31: 1.348352514 | Y31: 0.1361836039 | AD31: 1.155778259 | AE31: 0.04129703668 | AG31: 31
A32: 23 | B32: -2.677 | G32: 111.8477256 | N32: 0.0110856585 | P32: 1.239905689 | V32: 1.239905689 | Y32: 0.1252304746 | AD32: 1.281008734 | AE32: 0.0457716385 | AG32: 32
A33: 24 | B33: -2.576 | G33: 70.97739875 | N33: 0.01445338648 | P33: 1.025863776 | V33: 1.025863776 | Y33: 0.1036122413 | AD33: 1.384620975 | AE33: 0.04947380065 | AG33: 33
A34: 25 | B34: -2.475 | G34: 36.9498061 | N34: 0.01865294879 | P34: 0.689222841 | V34: 0.689222841 | Y34: 0.06961150694 | AD34: 1.454232482 | AE34: 0.05196108481 | AG34: 34
A35: 26 | B35: -2.374 | G35: 9.144050387 | N35: 0.02382841428 | P35: 0.2178882208 | V35: 0.2178882208 | Y35: 0.0220067103 | AD35: 1.476239192 | AE35: 0.05274740512 | AG35: 35
A36: 27 | B36: -2.273 | G36: -13.03588328 | N36: 0.03013093081 | P36: -0.3927832971 | V36: 0.3927832971 | Y36: 0.039671113 | AD36: 1.515910305 | AE36: 0.05416489104 | AG36: 36
A37: 28 | B37: -2.172 | G37: -30.16112749 | N37: 0.03771374986 | P37: -1.137489218 | V37: 1.137489218 | Y37: 0.114886411 | AD37: 1.630796716 | AE37: 0.05826988981 | AG37: 37
A38: 29 | B38: -2.071 | G38: -42.77793252 | N38: 0.04672578931 | P38: -1.998832662 | V38: 1.998832662 | Y38: 0.2018820989 | AD38: 1.832678815 | AE38: 0.06548332575 | AG38: 38
A39: 30 | B39: -1.97 | G39: -51.40766636 | N39: 0.05730378892 | P39: -2.945854062 | V39: 2.945854062 | Y39: 0.2975312602 | AD39: 2.130210076 | AE39: 0.07611439557 | AG39: 39
A40: 31 | B40: -1.869 | G40: -56.54681467 | N40: 0.06956323853 | P40: -3.933579557 | V40: 3.933579557 | Y40: 0.3972915353 | AD40: 2.527501611 | AE40: 0.09030999319 | AG40: 40
A41: 32 | B41: -1.768 | G41: -58.66698081 | N41: 0.08358839927 | P41: -4.903879016 | V41: 4.903879016 | Y41: 0.4952917806 | AD41: 3.022793391 | AE41: 0.1080072311 | AG41: 41
A42: 33 | B42: -1.667 | G42: -58.21488584 | N42: 0.09942188354 | P42: -5.787833601 | V42: 5.787833601 | Y42: 0.5845711937 | AD42: 3.607364585 | AE42: 0.1288945058 | AG42: 42
A43: 34 | B43: -1.566 | G43: -55.61236851 | N43: 0.1170543955 | P43: -6.50967218 | V43: 6.50967218 | Y43: 0.6574768901 | AD43: 4.264841475 | AE43: 0.1523867692 | AG43: 43
A44: 35 | B44: -1.465 | G44: -51.25638525 | N44: 0.1364153459 | P44: -6.992157524 | V44: 6.992157524 | Y44: 0.70620791 | AD44: 4.971049385 | AE44: 0.1776202374 | AG44: 44
A45: 36 | B45: -1.364 | G45: -45.5190102 | N45: 0.1573651256 | P45: -7.163104756 | V45: 7.163104756 | Y45: 0.7234735804 | AD45: 5.694522966 | AE45: 0.2034706241 | AG45: 45
A46: 37 | B46: -1.263 | G46: -38.74743519 | N46: 0.1796898386 | P46: -6.962520377 | V46: 6.962520377 | Y46: 0.703214558 | AD46: 6.397737524 | AE46: 0.2285971371 | AG46: 46
A47: 38 | B47: -1.162 | G47: -31.26396974 | N47: 0.2030992439 | P47: -6.349688615 | V47: 6.349688615 | Y47: 0.6413185502 | AD47: 7.039056074 | AE47: 0.2515120478 | AG47: 47
A48: 39 | B48: -1.061 | G48: -23.36604105 | N48: 0.2272285288 | P48: -5.309431132 | V48: 5.309431132 | Y48: 0.5362525443 | AD48: 7.575308618 | AE48: 0.2706728521 | AG48: 48
A49: 40 | B49: -0.96 | G49: -15.32619404 | N49: 0.2516443411 | P49: -3.856750001 | V49: 3.856750001 | Y49: 0.3895317501 | AD49: 7.964840368 | AE49: 0.2845911853 | AG49: 49
A50: 41 | B50: -0.859 | G50: -7.392091298 | N50: 0.2758552429 | P50: -2.03914714 | V50: 2.03914714 | Y50: 0.2059538612 | AD50: 8.170794229 | AE50: 0.2919501092 | AG50: 50
A51: 42 | B51: -0.758 | G51: 0.2134868804 | N51: 0.2993264386 | P51: 0.06390226761 | V51: 0.06390226761 | Y51: 0.006454129029 | AD51: 8.177248358 | AE51: 0.2921807212 | AG51: 51
A52: 43 | B52: -0.657 | G52: 7.292642512 | N52: 0.3214982967 | P52: 2.344572146 | V52: 2.344572146 | Y52: 0.2368017868 | AD52: 8.414050145 | AE52: 0.3006418702 | AG52: 52
A53: 44 | B53: -0.556 | G53: 13.67235992 | N53: 0.341807853 | P53: 4.673319989 | V53: 4.673319989 | Y53: 0.4720053189 | AD53: 8.886055464 | AE53: 0.3175070611 | AG53: 53
A54: 45 | B54: -0.455 | G54: 19.20450573 | N54: 0.3597121923 | P54: 6.908094859 | V54: 6.908094859 | Y54: 0.6977175807 | AD54: 9.583773045 | AE54: 0.3424371619 | AG54: 54
A55: 46 | B55: -0.354 | G55: 23.76582889 | N55: 0.3747123803 | P55: 8.905350313 | V55: 8.905350313 | Y55: 0.8994403816 | AD55: 10.48321343 | AE55: 0.3745750068 | AG55: 55
A56: 47 | B56: -0.253 | G56: 27.25796063 | N56: 0.3863764857 | P56: 10.53183504 | V56: 10.53183504 | Y56: 1.063715339 | AD56: 11.54692877 | AE56: 0.4125825494 | AG56: 56
A57: 48 | B57: -0.152 | G57: 29.60741452 | N57: 0.3943602161 | P57: 11.67598639 | V57: 11.67598639 | Y57: 1.179274625 | AD57: 12.72620339 | AE57: 0.4547191332 | AG57: 57
A58: 49 | B58: -0.051 | G58: 30.7655864 | N58: 0.3984237932 | P58: 12.25774163 | V58: 12.25774163 | Y58: 1.238031905 | AD58: 13.9642353 | AE58: 0.4989551694 | AG58: 58
A59: 50 | B59: 0.05 | G59: 30.70875444 | N59: 0.3984439141 | P59: 12.23571632 | V59: 12.23571632 | Y59: 1.235807348 | AD59: 15.20004264 | AE59: 0.5431117202 | AG59: 59
A60: 51 | B60: 0.151 | G60: 29.43807912 | N60: 0.3944199662 | P60: 11.61096617 | V60: 11.61096617 | Y60: 1.172707583 | AD60: 16.37275023 | AE60: 0.5850136574 | AG60: 60
A61: 52 | B61: 0.252 | G61: 26.97960321 | N61: 0.3864740581 | P61: 10.42691674 | V61: 10.42691674 | Y61: 1.053118591 | AD61: 17.42586882 | AE61: 0.6226425682 | AG61: 61
A62: 53 | B62: 0.353 | G62: 23.3842518 | N62: 0.3748448645 | P62: 8.765466697 | V62: 8.765466697 | Y62: 0.8853121364 | AD62: 18.31118095 | AE62: 0.6542755977 | AG62: 62
A63: 54 | B63: 0.454 | G63: 18.72783228 | N63: 0.3598757186 | P63: 6.739692101 | V63: 6.739692101 | Y63: 0.6807089022 | AD63: 18.99188986 | AE63: 0.6785979626 | AG63: 63
A64: 55 | B64: 0.555 | G64: 13.11103436 | N64: 0.34199778 | P64: 4.483944646 | V64: 4.483944646 | Y64: 0.4528784092 | AD64: 19.44476826 | AE64: 0.6947797311 | AG64: 64
A65: 56 | B65: 0.656 | G65: 6.659430047 | N65: 0.3217094297 | P65: 2.142401442 | V65: 2.142401442 | Y65: 0.2163825457 | AD65: 19.66115081 | AE65: 0.7025112816 | AG65: 65
A66: 57 | B66: 0.757 | G66: -0.4765263524 | N66: 0.2995532643 | P66: -0.1427450244 | V66: 0.1427450244 | Y66: 0.01441724746 | AD66: 19.67556806 | AE66: 0.7030264233 | AG66: 66
A67: 58 | B67: 0.858 | G67: -8.121498212 | N67: 0.2760921663 | P67: -2.242282035 | V67: 2.242282035 | Y67: 0.2264704855 | AD67: 19.90203854 | AE67: 0.7111184253 | AG67: 67
A68: 59 | B68: 0.959 | G68: -16.0752666 | N68: 0.2518859097 | P68: -4.049133153 | V68: 4.049133153 | Y68: 0.4089624484 | AD68: 20.31100099 | AE68: 0.7257310355 | AG68: 68
A69: 60 | B69: 1.06 | G69: -24.11273029 | N69: 0.2274696325 | P69: -5.484913897 | V69: 5.484913897 | Y69: 0.5539763036 | AD69: 20.8649773 | AE69: 0.7455251262 | AG69: 69
A70: 61 | B70: 1.161 | G70: -31.98390573 | N70: 0.2033352807 | P70: -6.503456451 | V70: 6.503456451 | Y70: 0.6568491015 | AD70: 21.5218264 | AE70: 0.7689949581 | AG70: 70
A71: 62 | B71: 1.262 | G71: -39.41392707 | N71: 0.1799168403 | P71: -7.091229223 | V71: 7.091229223 | Y71: 0.7162141515 | AD71: 22.23804055 | AE71: 0.7945859587 | AG71: 71
A72: 63 | B72: 1.363 | G72: -46.10304616 | N72: 0.1575798393 | P72: -7.264910604 | V72: 7.264910604 | Y72: 0.733755971 | AD72: 22.97179652 | AE72: 0.8208037448 | AG72: 72
A73: 64 | B73: 1.464 | G73: =(1-($F$7/6)*(3*B73-B73^3)+(($D$7-3)*(3-6*B73^2+B73^4))/24) -> -51.72663253 | N73: =NORMDIST(B73,0,1,FALSE) -> 0.1366152725 | P73: =G73*N73 -> -7.066648001 | V73: =ABS(P73) -> 7.066648001 | Y73: 0.7137314481 | AD73: 23.68552797 | AE73: =AD73/SUM($Y$9:$Y$108) -> 0.8463060361 | AG73: 73
A74: 65 | B74: =$B$9+A74*$A$7 -> 1.565 | G74: -55.93517341 | N74: 0.1172377877 | P74: -6.557715985 | V74: 6.557715985 | Y74: =($A$7)*V74 -> 0.6623293145 | AD74: =Y74+AD73 -> 24.34785728 | AE74: 0.8699716811 | AF74: =IF(AE74>0.99,"x","") ->  | AG74: 74
A75: 66 | B75: 1.666 | G75: -58.35427372 | N75: 0.09958770824 | P75: -5.811368386 | V75: 5.811368386 | Y75: 0.586948207 | AD75: 24.93480549 | AE75: 0.8909438887 | AG75: 75
A76: 67 | B76: 1.767 | G76: -58.58465608 | N76: 0.08373627241 | P76: -4.905660721 | V76: 4.905660721 | Y76: 0.4954717328 | AD76: 25.43027722 | AE76: 0.9086475565 | AG76: 76
A77: 68 | B77: 1.868 | G77: -56.20216079 | N77: 0.06969333895 | P77: -3.916916242 | V77: 3.916916242 | Y77: 0.3956085404 | AD77: 25.82588576 | AE77: 0.9227830191 | AG77: 77
A78: 69 | B78: 1.969 | G78: -50.75774585 | N78: 0.05741675994 | P78: -2.914345309 | V78: 2.914345309 | Y78: 0.2943488762 | AD78: 26.12023464 | AE78: 0.9333003794 | AG78: 78
A79: 70 | B79: 2.07 | G79: -41.77748696 | N79: 0.04682263528 | P79: -1.956132035 | V79: 1.956132035 | Y79: 0.1975693355 | AD79: 26.31780397 | AE79: 0.9403597163 | AG79: 79
A80: 71 | B80: 2.171 | G80: -28.76257751 | N80: 0.03779573425 | P80: -1.087102736 | V80: 1.087102736 | Y80: 0.1097973763 | AD80: 26.42760135 | AE80: 0.9442828791 | AG80: 80
A81: 72 | B81: 2.272 | G81: -11.18932857 | N81: 0.03019948121 | P81: -0.3379119178 | V81: 0.3379119178 | Y81: 0.0341291037 | AD81: 26.46173045 | AE81: 0.9455023438 | AG81: 81
A82: 73 | B82: 2.373 | G82: 11.49083109 | N82: 0.02388503819 | P82: 0.2744589395 | V82: 0.2744589395 | Y82: 0.02772035289 | AD82: 26.48945081 | AE82: 0.9464928179 | AG82: 82
A83: 74 | B83: 2.474 | G83: 39.851355 | N83: 0.01869916267 | P83: 0.7451869697 | V83: 0.7451869697 | Y83: 0.07526388394 | AD83: 26.56471469 | AE83: 0.9491820668 | AG83: 83
A84: 75 | B84: 2.575 | G84: 74.490579 | N84: 0.01449065916 | P84: 1.079417591 | V84: 1.079417591 | Y84: 0.1090211767 | AD84: 26.67373587 | AE84: 0.9530774953 | AG84: 84
A85: 76 | B85: 2.676 | G85: 116.0317212 | N85: 0.01111536901 | P85: 1.289735398 | V85: 1.289735398 | Y85: 0.1302632752 | AD85: 26.80399914 | AE85: 0.9577319238 | AG85: 85
A86: 77 | B86: 2.777 | G86: 165.1228822 | N86: 0.008439746274 | P86: 1.39359523 | V86: 1.39359523 | Y86: 0.1407531182 | AD86: 26.94475226 | AE86: 0.9627611641 | AG86: 86
A87: 78 | B87: 2.878 | G87: 222.4370446 | N87: 0.006343145276 | P87: 1.410950489 | V87: 1.410950489 | Y87: 0.1425059993 | AD87: 27.08725826 | AE87: 0.9678530366 | AG87: 87
A88: 79 | B88: 2.979 | G88: 288.6720735 | N88: 0.004718996853 | P88: 1.362242606 | V88: 1.362242606 | Y88: 0.1375865032 | AD88: 27.22484476 | AE88: 0.9727691308 | AG88: 88
A89: 80 | B89: 3.08 | G89: 364.5507163 | N89: 0.003475077378 | P89: 1.266841947 | V89: 1.266841947 | Y89: 0.1279510367 | AD89: 27.3527958 | AE89: 0.9773409409 | AG89: 89
A90: 81 | B90: 3.181 | G90: 450.8206028 | N90: 0.00253308074 | P90: 1.141964986 | V90: 1.141964986 | Y90: 0.1153384636 | AD90: 27.46813426 | AE90: 0.9814620919 | AG90: 90
A91: 82 | B91: 3.282 | G91: 548.2542448 | N91: 0.00182769342 | P91: 1.002040676 | V91: 1.002040676 | Y91: 0.1012061083 | AD91: 27.56934037 | AE91: 0.9850782807 | AG91: 91
A92: 83 | B92: 3.383 | G92: 657.6490367 | N92: 0.00130535136 | P92: 0.8584630643 | V92: 0.8584630643 | Y92: 0.08670476949 | AD92: 27.65604514 | AE92: 0.9881763231 | AG92: 92
A93: 84 | B93: 3.484 | G93: 779.827255 | N93: 0.0009228290672 | P93: 0.7196472584 | V93: 0.7196472584 | Y93: 0.0726843731 | AD93: 27.72872951 | AE93: 0.9907734036 | AF93: x | AG93: 93
A94: 85 | B94: 3.585 | G94: 915.6360588 | N94: 0.0006457804109 | P94: 0.5912998303 | V94: 0.5912998303 | Y94: 0.05972128286 | AD94: 27.7884508 | AE94: 0.9929073008 | AF94: x | AG94: 94
A95: 86 | B95: 3.686 | G95: 1065.947489 | N95: 0.0004473199117 | P95: 0.4768195368 | V95: 0.4768195368 | Y95: 0.04815877321 | AD95: 27.83660957 | AE95: 0.9946280588 | AF95: x | AG95: 95
A96: 87 | B96: 3.787 | G96: 1231.65847 | N96: 0.0003067053531 | P96: 0.3777562458 | V96: 0.3777562458 | Y96: 0.03815338083 | AD96: 27.87476295 | AE96: 0.9959913147 | AF96: x | AG96: 96
A97: 88 | B97: 3.888 | G97: 1413.690806 | N97: 0.000208158545 | P97: 0.2942718213 | V97: 0.2942718213 | Y97: 0.02972145395 | AD97: 27.90448441 | AE97: 0.99705329 | AF97: x | AG97: 97
A98: 89 | B98: 3.989 | G98: 1612.991187 | N98: 0.0001398417638 | P98: 0.2255635326 | V98: 0.2255635326 | Y98: 0.02278191679 | AD98: 27.92726632 | AE98: 0.9978673092 | AF98: x | AG98: 98
A99: 90 | B99: 4.09 | G99: 1830.531182 | N99: 9.299279572e-05 | P99: 0.1702262123 | V99: 0.1702262123 | Y99: 0.01719284744 | AD99: 27.94445917 | AE99: 0.9984816257 | AF99: x | AG99: 99
A100: 91 | B100: 4.191 | G100: 2067.307245 | N100: 6.121128236e-05 | P100: 0.1265425275 | V100: 0.1265425275 | Y100: 0.01278079527 | AD100: 27.95723997 | AE100: 0.9989382954 | AF100: x | AG100: 100
A101: 92 | B101: 4.292 | G101: 2324.34071 | N101: 3.988259546e-05 | P101: 0.09270074024 | V101: 0.09270074024 | Y101: 0.009362774764 | AD101: 27.96660274 | AE101: 0.9992728361 | AF101: x | AG101: 101
A102: 93 | B102: 4.393 | G102: 2602.677794 | N102: 2.572202232e-05 | P102: 0.06694613633 | V102: 0.06694613633 | Y102: 0.006761559769 | AD102: 27.9733643 | AE102: 0.999514433 | AF102: x | AG102: 102
A103: 94 | B103: 4.494 | G103: 2903.389598 | N103: 1.64208854e-05 | P103: 0.04767622787 | V103: 0.04767622787 | Y103: 0.004815299015 | AD103: 27.9781796 | AE103: 0.9996864881 | AF103: x | AG103: 103
A104: 95 | B104: 4.595 | G104: 3227.572104 | N104: 1.037666489e-05 | P104: 0.03349143414 | V104: 0.03349143414 | Y104: 0.003382634848 | AD104: 27.98156223 | AE104: 0.9998073528 | AF104: x | AG104: 104
A105: 96 | B105: 4.696 | G105: 3576.346175 | N105: 6.49065873e-06 | P105: 0.02321284252 | V105: 0.02321284252 | Y105: 0.002344497095 | AD105: 27.98390673 | AE105: =AD105/SUM($Y$9:$Y$108) -> 0.9998911239 | AF105: x | AG105: 105
A106: 97 | B106: =$B$9+A106*$A$7 -> 4.797 | G106: 3950.857559 | N106: 4.0187364e-06 | P106: 0.01587745508 | V106: 0.01587745508 | Y106: 0.001603622963 | AD106: 27.98551035 | AE106: =AD106/SUM($Y$9:$Y$108) -> 0.9999484228 | AF106: x | AG106: 106
A107: 98 | B107: =$B$9+A107*$A$7 -> 4.898 | G107: 4352.276883 | N107: 2.462975138e-06 | P107: 0.01071954976 | V107: 0.01071954976 | Y107: 0.001082674525 | AD107: 27.98659303 | AE107: =AD107/SUM($Y$9:$Y$108) -> 0.9999871078 | AF107: x | AG107: 107
A108: 99 | B108: =$B$9+A108*$A$7 -> 4.999 | G108: 4781.799661 | N108: 1.49417098e-06 | P108: 0.007144826286 | V108: 0.007144826286 | Y108: =($A$7/2)*V108 -> 0.0003608137274 | AD108: 27.98695384 | AE108: =AD108/SUM($Y$9:$Y$108) -> 1 | AF108: x | AG108: 108
AD110: =SUM($AD$9:$AD$108) -> 1411.449206

Sheet PetCoke_fPM_New_nonnormal n<3
B1: Emissions (lb/MW)
A2: Runs | B2: 667 Northside 1A
A3: 1 | B3: 0.004458064516
A4: 2 | B4: 0.009510537634
A5: 3 | B5: 0.006114042431
A6: 4
A7: 5
A8: 6
A9: 7
A10: 8
A11: 9
A12: 10
A13: 11
A14: 12
A15: 13
A16: 14
A17: 15
A18: 16
A19: 17
A20: 18
A21: 19
A22: 20
A23: 21
A24: 22
A25: 23
A26: 24
A27: 25
A28: 26
A29: 27
A30: 28
A31: 29
A32: 30
A33: 31
A34: 32
A35: 33
A36: 34
A37: 35
A39: n for each source | B39: =COUNT(B3:B37) -> 3 | C39: =COUNT(C3:C37) -> 0 | D39: 0 | E39: 0 | F39: 0 | G39: 0 | H39: 0 | I39: 0 | J39: 0 | K39: 0 | L39: 0
A40: Sample size | B40: =SUM(B39:L39) -> 3
A41: If sample size is less than 4 test runs use the kurtosis calculation section below
A42: NOTE: Sample size is the number of test runs used to calculate the average
A44: KURTOSIS CALCULATIONS WHEN TOTAL NUMBER TEST RUNS IS LESS THAN 4
A45: Average | B45: =AVERAGE(B3:L37) -> 0.006694214861
A46: Standard Deviation | B46: =STDEV(B3:L37) -> 0.002575717607
A47: 1 | B47: =((B3-$B$45)/($B$46))^4 -> 0.568081977
A48: 2 | B48: =((B4-$B$45)/($B$46))^4 -> 1.429343864
A49: 3 | B49: =((B5-$B$45)/($B$46))^4 -> 0.002574158946
A50: 4
A51: 5
A52: 6
A53: 7
A54: 8
A55: 9
A56: 10
A57: 11
A58: 12
A59: 13
A60: 14
A61: 15
A62: 16
A63: 17
A64: 18
A65: 19
A66: 20
A67: 21
A68: 22
A69: 23
A70: 24
A71: 25
A72: 26
A73: 27
A74: 28
A75: 29
A76: 30
A77: 31
A78: 32
A79: 33
A80: 34
A81: 35
A83: Testing Normality | B83: Raw Data
A84: Sample Size | B84: =COUNT(B3:L37) -> 3
A85: Kurtosis | B85: =SUM(B47:L81)/($B$84-1)-3 -> -2
A86: SE Kurtosis | B86: =SQRT(24/B84) -> 2.828427125
A87: Result Kurtosis | B87: =IF(ABS(B85/B86)>NORMSINV(1-0.05/2),"non normal","normal") -> normal
A88: Skewness | B88: =SKEW(B3:L37) -> 0.9621843457
A89: SE Skewness | B89: =SQRT((6*B84*(B84-1))/((B84-2)*(B84+1)*(B84+3))) -> 1.224744871 | D89: RESULT
A90: Result Skewness | B90: =IF(ABS(B88/B89)>NORMSINV(1-0.05/2),"non normal","normal") -> normal | D90: =IF(AND(B87="normal", B90="normal"),"normal", "non normal") -> normal
A93: ni = number test runs = | B93: =COUNT(B3:B37) -> 3 | C93: =COUNT(C3:C37) -> 0 | D93: 0 | E93: 0 | F93: 0 | G93: 0 | H93: 0 | I93: 0 | J93: 0 | K93: 0
A95: Total Number of sources = | B95: =COUNTA(B2:L2) -> 1
A98: n =Total # test runs = | B98: =COUNT(B3:L37) -> 3
B103: =B98-1 -> 2
A108: This step is for QC only:
A110: means | B110: =AVERAGE(B3:B37) -> 0.006694214861 | C110: =AVERAGE(C3:C37) ->  | D110: =AVERAGE(D3:D37) -> 
B117: =AVERAGE(B3:L37) -> 0.006694214861
A118: Mean =
A122: Pooled Variance = | D122: =VAR(B3:L37) -> 6.634321188e-06
A128: m= number future runs = | B128: 1
A131: Term1 | B131: =1/B98+1/B128 -> 1.333333333
A135: Term2 | B135: =D122*B131 -> 8.845761585e-06
A141: Squared root Term2 | C141: =SQRT(B135) -> 0.002974182507
A144: NOTE: the pvalue for the t-statistic is calculated as: 2*alpha, where 1-alpha is desired confidence, so if 99% confidence is desired then alpha=0.01 and 2*alpha=2*(0.01)
A147: t-statistic | B147: = quantile t-distribution with df degrees of freedom at .99 confidence level = | H147: =TINV(2*0.01,B103) -> 6.964556734
A150: Adjustment for non-normality (skewness and kurtosis) for any sample size in particular for small samples
A152: a) n = number of test-runs = | J152: =B98 -> 3
A154: b) Calculate u0 | J154: =1/(1+$H$147^2/($J$152-1)) -> 0.0396
B159: Current Confidence Level is | E159: 0.9748613362
A160: Conclusion | B160: Confidence Level is not 99%, Go to Recalculate t-stat n<3 tab to fix the Confidence Level
B164: new t-statistic from tab Recalculate t-statistic
A167: Adjusted UPL for skewness and kurtosis for all sample size | E167: =B117+C141*E164 -> 0.006694214861

Sheet ERT
A1: Key | B1: RTI Calculated QA lb/MMBtu | C1: Run Grade | D1: Submitted Value | E1: Submitted Value UOM | F1: Use ? | G1: Comment | H1: facility_id | I1: configuration_id | J1: submittal_id | K1: Compound | L1: RunDate | M1: Method | N1: RunNumber | O1: RunStartTime | P1: RunEndTime | Q1: NetTravPts | R1: Mass_TOOL | S1: mass | T1: units | U1: Vmstd | V1: Cd | W1: Vwstd | X1: PercH20 | Y1: PercCO2 | Z1: PercO2 | AA1: Fd | AB1: 19-1 | AC1: 19-5 | AD1: Fc | AE1: 19-6 | AF1: 19-9 | AG1: Fw | AH1: FuelType | AI1: lb/mmBtuO2 | AJ1: CountOfComments | AK1: AvgOfStackTemp | AL1: AvgOfDryGasInlet | AM1: AvgOfDryGasOutlet | AN1: AvgOfOrificePresDesired | AO1: AvgOfOrificePresActual | AP1: AvgOfProbeTemp | AQ1: AvgOfFilterTemp | AR1: AvgOfImpingTemp | AS1: CountOfNotes | AT1: M29 Isokinetic (+/- 10%) | AU1: OTM27 includes all fractions? | AV1: QA Comment | AW1: Questions for EPA
U2: DSCF | V2: lb/dscf
A3: 5_fPM_T1_R1 | B3: =AB3 -> 0.0009629942856 | C3: A | D3: =AI3 -> 0.0009638604862 | E3: =$AI$1 -> lb/mmBtuO2 | F3: Yes | H3: 667 | I3: 1A | J3: 1507 | K3: Filterable Particulate | L3: 2010-05-18 | M3: Method 29 | N3: 1 | O3: 08:30 | P3: 12:46 | Q3: 48 | R3: 5.55 | S3: 5.55 | T3: mg | U3: 159.765 | V3: =S3/$H$9/$H$11/U3 -> 7.651656873e-08 | W3: 19.74 | X3: 11.00 | Y3: 15.6 | Z3: 4.8 | AA3: 9695 | AB3: =V3*AA3*20.9/((20.9-Z3)) -> 0.0009629942856 | AC3: =V3*AA3*20.9/((20.9-Z3)/(1-X3/100)) -> 0.0008570649142 | AD3: 0 | AE3: =V3*AD3/Y3 -> 0 | AF3: =V3*AD3*(1-X3/100)*100/Y3 -> 0 | AG3: 0 | AH3: Override | AI3: 0.0009638604862 | AJ3: 49 | AK3: 197.7291667 | AL3: 94.72916667 | AM3: 94.72916667 | AN3: 1.474264777 | AO3: 1.5209375 | AP3: 254.5416667 | AQ3: 252.5 | AR3: 52.9375 | AS3: 0 | AT3: 102.1
A4: 5_fPM_T1_R2 | B4: =AB4 -> 0.0005367876215 | C4: A | D4: =AI4 -> 0.0005372704548 | E4: =$AI$1 -> lb/mmBtuO2 | F4: Yes | H4: 667 | I4: 1A | J4: 1507 | K4: Filterable Particulate | L4: 2010-05-18 | M4: Method 29 | N4: 2 | O4: 15:45 | P4: 19:32 | Q4: 48 | R4: 3.15 | S4: 3.15 | T4: mg | U4: 163.044 | V4: =S4/$H$9/$H$11/U4 -> 4.25549299e-08 | W4: 19.85 | X4: 10.85 | Y4: 15.2 | Z4: 4.8 | AA4: 9717 | AB4: 0.0005367876215 | AC4: =V4*AA4*20.9/((20.9-Z4)/(1-X4/100)) -> 0.0004785461646 | AD4: 0 | AE4: =V4*AD4/Y4 -> 0 | AF4: =V4*AD4*(1-X4/100)*100/Y4 -> 0 | AG4: 0 | AH4: Override | AI4: 0.0005372704548 | AJ4: 49 | AK4: 197.1041667 | AL4: 102.5416667 | AM4: 102.5416667 | AN4: 1.594131518 | AO4: 1.660125 | AP4: 254.6666667 | AQ4: 254.0833333 | AR4: 52.47916667 | AS4: 0 | AT4: 100.7
A5: 5_fPM_T1_R3 | B5: 0.000555554389 | C5: A | D5: 0.0005560541028 | E5: lb/mmBtuO2 | F5: Yes | H5: 667 | I5: 1A | J5: 1507 | K5: Filterable Particulate | L5: 2010-05-19 | M5: Method 29 | N5: 3 | O5: 09:30 | P5: 13:39 | Q5: 48 | R5: 3.15 | S5: 3.15 | T5: mg | U5: 159.448 | V5: =S5/$H$9/$H$11/U5 -> 4.351466303e-08 | W5: 19.21 | X5: 10.75 | Y5: 15.2 | Z5: 4.7 | AA5: 9896 | AB5: 0.000555554389 | AC5: 0.0004958322922 | AD5: 0 | AE5: 0 | AF5: 0 | AG5: 0 | AH5: Override | AI5: 0.0005560541028 | AJ5: 49 | AK5: 198.8125 | AL5: 100.5208333 | AM5: 100.5208333 | AN5: 1.496576943 | AO5: 1.553222917 | AP5: 254.2083333 | AQ5: 254.8958333 | AR5: 54.35416667 | AS5: 0 | AT5: 101.6
C7: Run 1 | D7: =D3*B$20 -> 0.008593904464 | E7: lb/MWh | F7: >90 | AJ7: Header tab comments | AS7: Point tab notes
C8: Run 2 | D8: =D4*B$20 -> 0.004790372701 | E8: lb/MWh | F8: >90 | H8: Conversions Used
C9: Run 3 | D9: 0.00495785013 | E9: lb/MWh | F9: >90 | H9: 1000 | I9: mg= | J9: 1 | K9: g
C10: Average | D10: =AVERAGE(D7:D9) -> 0.006114042431 | E10: lb/MWh | H10: 1000000 | I10: ug= | J10: 1 | K10: g
H11: 454 | I11: g= | J11: 1 | K11: lb
A14: Subcategory_ID | B14: 5-fPM
A15: Subcategory Desc. | B15: Petcoke
A16: ORIS Code | B16: 667
A17: Plant Name | B17: Northside
A18: Configuration ID | B18: 1A
A19: Boiler ID
A20: Heat Rate | B20: 8.916129032

Sheet 667_PartII
H1: Not a good F-factor estimation | AK1: NO Fd | AM1: No Fc
A2: Key | B2: RTI Calculated QA lb/MMBtu | C2: Run Grade | D2: Submitted Value | E2: Submitted Value UOM | F2: Use ? | G2: Comment | H2: facility_id | I2: configuration_id | J2: report_id | K2: sampling_port_id | L2: order | M2: pollutant_id | N2: pollutant_name | O2: run_id | P2: start_datetime | Q2: end_datetime | R2: unit_load | S2: fuel_flow_rate | T2: fuel_heating_value | U2: fg_moisture_content | V2: fg_oxygen_content | W2: fg_CO2_content | X2: fg_temperature | Y2: test_method | Z2: conc | AA2: conc_units | AB2: conc_ND | AC2: conc_MDL | AD2: conc2 | AE2: conc2_units | AF2: emission_rate | AG2: emission_rate_units | AH2: emission_rate_ND | AI2: emission_rate_MDL | AJ2: Calculated conc lb/dscf | AK2: 19-1 lb/MMBtu | AL2: %diff 19-1 | AM2: 19-6 lb/MMBtu | AN2: %diff 19-6 | AO2: emission_factor | AP2: emission_factor_units | AQ2: emission_factor_ND | AR2: emission_factor_MDL | AS2: run_pollutant_comment | AT2: Fuel1 | AU2: Fuel1%Btu | AV2: Fuel2 | AW2: Fuel2%Btu | AX2: QA Comment
A3: 5_fPM_T2_R1 | B3: n/a | C3: C | D3: =AO3 -> 0.003 | E3: =AP3 -> pound per million British Thermal Unit (lb/MMBtu) | F3: Yes | G3: Method 19 doesn't provide an F factor for petcoke; RTI was unable to determine a good F factor to calculate lb/MMBtu from conc | H3: 667 | I3: 1A | J3: N1_2005_PM | K3: 1AStack | L3: 5 | M3: 1 | N3: PM (Filterable) | O3: 1 | P3: 2005-06-14T09:25:00 | Q3: 2005-06-14T11:35:00 | R3: 297.32 | S3: 192921 | T3: 15017.1 | U3: 9.06 | V3: 3.6 | W3: 15.02 | X3: 222 | Y3: Method 17 | Z3: 2.86e-07 | AA3: pound per dry standard cubic foot (lb/dscf) | AB3: FALSE | AF3: 10.53 | AG3: pound per hour (lb/hr) | AH3: FALSE | AO3: 0.003 | AP3: pound per million British Thermal Unit (lb/MMBtu) | AQ3: FALSE | AS3: gr/dscf
A4: 5_fPM_T2_R2 | B4: n/a | C4: C | D4: =AO4 -> 0.003 | E4: pound per million British Thermal Unit (lb/MMBtu) | F4: Yes | G4: Method 19 doesn't provide an F factor for petcoke; RTI was unable to determine a good F factor to calculate lb/MMBtu from conc | H4: 667 | I4: 1A | J4: N1_2005_PM | K4: 1AStack | L4: 5 | M4: 1 | N4: PM (Filterable) | O4: 2 | P4: 2005-06-14T12:00:00 | Q4: 2005-06-14T14:05:00 | R4: 297.32 | S4: 192921 | T4: 15017.7 | U4: 9.56 | V4: 3.59 | W4: 14.99 | X4: 226 | Y4: Method 17 | Z4: 2.82e-07 | AA4: pound per dry standard cubic foot (lb/dscf) | AB4: FALSE | AF4: 10.33 | AG4: pound per hour (lb/hr) | AH4: FALSE | AO4: 0.003 | AP4: pound per million British Thermal Unit (lb/MMBtu) | AQ4: FALSE | AS4: lb/dscf
A5: 5_fPM_T2_R3 | B5: n/a | C5: C | D5: 0.003 | E5: pound per million British Thermal Unit (lb/MMBtu) | F5: Yes | G5: Method 19 doesn't provide an F factor for petcoke; RTI was unable to determine a good F factor to calculate lb/MMBtu from conc | H5: 667 | I5: 1A | J5: N1_2005_PM | K5: 1AStack | L5: 5 | M5: 1 | N5: PM (Filterable) | O5: 3 | P5: 2005-06-14T14:20:00 | Q5: 2005-06-14T16:26:00 | R5: 297.32 | S5: 192921 | T5: 15017.7 | U5: 9.56 | V5: 3.59 | W5: 14.99 | X5: 226 | Y5: Method 17 | Z5: 2.82e-07 | AA5: pound per dry standard cubic foot (lb/dscf) | AB5: FALSE | AF5: 10.33 | AG5: pound per hour (lb/hr) | AH5: FALSE | AO5: 0.003 | AP5: pound per million British Thermal Unit (lb/MMBtu) | AQ5: FALSE | AS5: lb/dscf
D6: =D3*B$47 -> 0.0267483871 | E6: lb/MWh | H6: 667 | I6: 1A | J6: N1_2005_PM | K6: 1AStack | N6: PM (Filterable) | O6: 1 | P6: 2005-06-14T09:25:00 | Q6: 2005-06-14T11:35:00 | R6: 297.32 | S6: 192921 | T6: 15017.1 | U6: 9.06 | V6: 3.6 | W6: 15.02 | X6: 222 | Y6: Method 17 | Z6: 2.86e-07 | AB6: FALSE | AJ6: =Z3 -> 2.86e-07 | AK6: =AJ6*$I$57*20.9/(20.9-V6) -> 0.003406772486 | AL6: =($AO6-AK6)/$AO6 -> -0.1355908285 | AM6: =AJ6*$K$54*100/$I$60 ->  | AN6: =($AO6-AM6)/$AO6 ->  | AO6: 0.003 | AP6: pound per million British Thermal Unit (lb/MMBtu) | AQ6: FALSE | AS6: gr/dscf | AT6: petroleum coke | AU6: 77.27 | AV6: coal - bituminous | AW6: 22.73 | AX6: Run1 conc UOM should be lb/dscf
D7: =D4*B$47 -> 0.0267483871 | E7: lb/MWh | H7: 667 | I7: 1A | J7: N1_2005_PM | K7: 1AStack | N7: PM (Filterable) | O7: 2 | P7: 2005-06-14T12:00:00 | Q7: 2005-06-14T14:05:00 | R7: 297.32 | S7: 192921 | T7: 15017.7 | U7: 9.56 | V7: 3.59 | W7: 14.99 | X7: 226 | Y7: Method 17 | Z7: 2.82e-07 | AB7: FALSE | AJ7: =Z4 -> 2.82e-07 | AK7: =AJ7*$I$57*20.9/(20.9-V7) -> 0.003357184749 | AL7: =($AO7-AK7)/$AO7 -> -0.1190615829 | AM7: =AJ7*$K$54*100/$I$60 ->  | AN7: =($AO7-AM7)/$AO7 ->  | AO7: 0.003 | AP7: pound per million British Thermal Unit (lb/MMBtu) | AQ7: FALSE | AS7: lb/dscf | AT7: petroleum coke | AU7: 77.27 | AV7: coal - bituminous | AW7: 22.73
D8: 0.0267483871 | E8: lb/MWh | H8: 667 | I8: 1A | J8: N1_2005_PM | K8: 1AStack | N8: PM (Filterable) | O8: 3 | P8: 2005-06-14T14:20:00 | Q8: 2005-06-14T16:26:00 | R8: 297.32 | S8: 192921 | T8: 15017.7 | U8: 9.56 | V8: 3.59 | W8: 14.99 | X8: 226 | Y8: Method 17 | Z8: 2.82e-07 | AB8: FALSE | AJ8: =Z5 -> 2.82e-07 | AK8: =AJ8*$I$57*20.9/(20.9-V8) -> 0.003357184749 | AL8: =($AO8-AK8)/$AO8 -> -0.1190615829 | AM8: =AJ8*$K$54*100/$I$60 ->  | AN8: =($AO8-AM8)/$AO8 ->  | AO8: 0.003 | AP8: pound per million British Thermal Unit (lb/MMBtu) | AQ8: FALSE | AS8: lb/dscf | AT8: petroleum coke | AU8: 77.27 | AV8: coal - bituminous | AW8: 22.73
C9: Average | D9: =AVERAGE(D6:D8) -> 0.0267483871 | E9: lb/MWh
A10: 5_fPM_T3_R1 | B10: n/a | C10: C | D10: =AO10 -> 0.0013 | E10: =AP10 -> pound per million British Thermal Unit (lb/MMBtu) | F10: Yes | G10: Method 19 doesn't provide an F factor for petcoke; RTI was unable to determine a good F factor to calculate lb/MMBtu from conc | H10: 667 | I10: 1A | J10: N1_2006_PM | K10: 1AStack | L10: 5 | M10: 1 | N10: PM (Filterable) | O10: 1 | P10: 2006-02-23T08:26:00 | Q10: 2006-02-23T10:31:00 | R10: 299.55 | S10: 196803 | T10: 15152.3 | U10: 10.12 | V10: 4.6 | W10: 15.2 | X10: 233.3 | Y10: Method 17 | Z10: 0.0007 | AA10: grains per dry standard cubic foot (gr/dscf) | AB10: FALSE | AF10: 3.99 | AG10: pound per hour (lb/hr) | AH10: FALSE | AO10: 0.0013 | AP10: pound per million British Thermal Unit (lb/MMBtu) | AQ10: FALSE | AS10: gr/scf
A11: 5_fPM_T3_R2 | B11: n/a | C11: C | D11: =AO11 -> 0.0013 | E11: pound per million British Thermal Unit (lb/MMBtu) | F11: Yes | G11: Method 19 doesn't provide an F factor for petcoke; RTI was unable to determine a good F factor to calculate lb/MMBtu from conc | H11: 667 | I11: 1A | J11: N1_2006_PM | K11: 1AStack | L11: 5 | M11: 1 | N11: PM (Filterable) | O11: 2 | P11: 2006-02-23T10:47:00 | Q11: 2006-02-23T12:53:00 | R11: 299.55 | S11: 196803 | T11: 15152.3 | U11: 9.58 | V11: 4.2 | W11: 15 | X11: 245 | Y11: Method 17 | Z11: 0.0007 | AA11: grains per dry standard cubic foot (gr/dscf) | AB11: FALSE | AF11: 3.89 | AG11: pound per hour (lb/hr) | AH11: FALSE | AO11: 0.0013 | AP11: pound per million British Thermal Unit (lb/MMBtu) | AQ11: FALSE | AS11: gr/scf
A12: 5_fPM_T3_R3 | B12: n/a | C12: C | D12: 0.0013 | E12: pound per million British Thermal Unit (lb/MMBtu) | F12: Yes | G12: Method 19 doesn't provide an F factor for petcoke; RTI was unable to determine a good F factor to calculate lb/MMBtu from conc | H12: 667 | I12: 1A | J12: N1_2006_PM | K12: 1AStack | L12: 5 | M12: 1 | N12: PM (Filterable) | O12: 3 | P12: 2006-02-23T13:11:00 | Q12: 2006-02-23T15:15:00 | R12: 299.55 | S12: 196803 | T12: 15152.3 | U12: 9.39 | V12: 4.2 | W12: 15 | X12: 248.8 | Y12: Method 17 | Z12: 0.0008 | AA12: grains per dry standard cubic foot (gr/dscf) | AB12: FALSE | AF12: 3.88 | AG12: pound per hour (lb/hr) | AH12: FALSE | AO12: 0.0013 | AP12: pound per million British Thermal Unit (lb/MMBtu) | AQ12: FALSE | AS12: gr/scf
D13: =D10*B$47 -> 0.01159096774 | E13: lb/MWh | H13: 667 | I13: 1A | J13: N1_2006_PM | K13: 1AStack | N13: PM (Filterable) | O13: 1 | P13: 2006-02-23T08:26:00 | Q13: 2006-02-23T10:31:00 | R13: 299.55 | S13: 196803 | T13: 15152.3 | U13: 10.12 | V13: 4.6 | W13: 15.2 | X13: 233.3 | Y13: Method 17 | Z13: 0.0007 | AB13: FALSE | AJ13: =Z10/$H$47 -> 1e-07 | AK13: =AJ13*$I$57*20.9/(20.9-V13) -> 0.001264257669 | AL13: =($AO13-AK13)/$AO13 -> 0.02749410099 | AM13: =AJ13*$K$54*100/$I$60 ->  | AN13: =($AO13-AM13)/$AO13 ->  | AO13: 0.0013 | AP13: pound per million British Thermal Unit (lb/MMBtu) | AQ13: FALSE | AS13: gr/scf | AT13: petroleum coke | AU13: 81.78 | AV13: coal - bituminous | AW13: 18.22
D14: =D11*B$47 -> 0.01159096774 | E14: lb/MWh | H14: 667 | I14: 1A | J14: N1_2006_PM | K14: 1AStack | N14: PM (Filterable) | O14: 2 | P14: 2006-02-23T10:47:00 | Q14: 2006-02-23T12:53:00 | R14: 299.55 | S14: 196803 | T14: 15152.3 | U14: 9.58 | V14: 4.2 | W14: 15 | X14: 245 | Y14: Method 17 | Z14: 0.0007 | AB14: FALSE | AJ14: =Z11/$H$47 -> 1e-07 | AK14: =AJ14*$I$57*20.9/(20.9-V14) -> 0.001233976048 | AL14: =($AO14-AK14)/$AO14 -> 0.05078765546 | AM14: =AJ14*$K$54*100/$I$60 ->  | AN14: =($AO14-AM14)/$AO14 ->  | AO14: 0.0013 | AP14: pound per million British Thermal Unit (lb/MMBtu) | AQ14: FALSE | AS14: gr/scf | AT14: petroleum coke | AU14: 81.78 | AV14: coal - bituminous | AW14: 18.22
D15: 0.01159096774 | E15: lb/MWh | H15: 667 | I15: 1A | J15: N1_2006_PM | K15: 1AStack | N15: PM (Filterable) | O15: 3 | P15: 2006-02-23T13:11:00 | Q15: 2006-02-23T15:15:00 | R15: 299.55 | S15: 196803 | T15: 15152.3 | U15: 9.39 | V15: 4.2 | W15: 15 | X15: 248.8 | Y15: Method 17 | Z15: 0.0008 | AB15: FALSE | AJ15: =Z12/$H$47 -> 1.142857143e-07 | AK15: =AJ15*$I$57*20.9/(20.9-V15) -> 0.00141025834 | AL15: =($AO15-AK15)/$AO15 -> -0.08481410805 | AM15: =AJ15*$K$54*100/$I$60 ->  | AN15: =($AO15-AM15)/$AO15 ->  | AO15: 0.0013 | AP15: pound per million British Thermal Unit (lb/MMBtu) | AQ15: FALSE | AS15: gr/scf | AT15: petroleum coke | AU15: 81.78 | AV15: coal - bituminous | AW15: 18.22
C16: Average | D16: =AVERAGE(D13:D15) -> 0.01159096774 | E16: lb/MWh
A17: 5_fPM_T4_R1 | B17: n/a | C17: C | D17: =AO17 -> 0.0006 | E17: =AP17 -> pound per million British Thermal Unit (lb/MMBtu) | F17: Yes | G17: Method 19 doesn't provide an F factor for petcoke; RTI was unable to determine a good F factor to calculate lb/MMBtu from conc | H17: 667 | I17: 1A | J17: N1_2007_PM | K17: 1AStack | L17: 5 | M17: 1 | N17: PM (Filterable) | O17: 1 | P17: 2007-02-28T08:48:00 | Q17: 2007-02-28T10:54:00 | R17: 313.07 | S17: 204537 | T17: 14831 | U17: 9.07 | V17: 4.5 | W17: 14.9 | X17: 230.5 | Y17: Method 17 | Z17: 0.0004 | AA17: grains per dry standard cubic foot (gr/dscf) | AB17: FALSE | AF17: 1.92 | AG17: pound per hour (lb/hr) | AH17: FALSE | AO17: 0.0006 | AP17: pound per million British Thermal Unit (lb/MMBtu) | AQ17: FALSE | AS17: gr/scf
A18: 5_fPM_T4_R2 | B18: n/a | C18: C | D18: =AO18 -> 0.0005 | E18: pound per million British Thermal Unit (lb/MMBtu) | F18: Yes | G18: Method 19 doesn't provide an F factor for petcoke; RTI was unable to determine a good F factor to calculate lb/MMBtu from conc | H18: 667 | I18: 1A | J18: N1_2007_PM | K18: 1AStack | L18: 5 | M18: 1 | N18: PM (Filterable) | O18: 2 | P18: 2007-02-28T11:07:00 | Q18: 2007-02-28T13:12:00 | R18: 313.07 | S18: 204537 | T18: 14831 | U18: 9.37 | V18: 4.6 | W18: 15 | X18: 230.8 | Y18: Method 17 | Z18: 0.0003 | AA18: grains per dry standard cubic foot (gr/dscf) | AB18: FALSE | AF18: 1.52 | AG18: pound per hour (lb/hr) | AH18: FALSE | AO18: 0.0005 | AP18: pound per million British Thermal Unit (lb/MMBtu) | AQ18: FALSE | AS18: gr/scf
A19: 5_fPM_T4_R3 | B19: n/a | C19: C | D19: 0.0006 | E19: pound per million British Thermal Unit (lb/MMBtu) | F19: Yes | G19: Method 19 doesn't provide an F factor for petcoke; RTI was unable to determine a good F factor to calculate lb/MMBtu from conc | H19: 667 | I19: 1A | J19: N1_2007_PM | K19: 1AStack | L19: 5 | M19: 1 | N19: PM (Filterable) | O19: 3 | P19: 2007-02-28T13:23:00 | Q19: 2007-02-28T15:36:00 | R19: 313.07 | S19: 204537 | T19: 14831 | U19: 9.07 | V19: 4.6 | W19: 15 | X19: 224.9 | Y19: Method 17 | Z19: 0.0003 | AA19: grains per dry standard cubic foot (gr/dscf) | AB19: FALSE | AF19: 1.64 | AG19: pound per hour (lb/hr) | AH19: FALSE | AO19: 0.0006 | AP19: pound per million British Thermal Unit (lb/MMBtu) | AQ19: FALSE | AS19: gr/scf
D20: =D17*B$47 -> 0.005349677419 | E20: lb/MWh | H20: 667 | I20: 1A | J20: N1_2007_PM | K20: 1AStack | N20: PM (Filterable) | O20: 1 | P20: 2007-02-28T08:48:00 | Q20: 2007-02-28T10:54:00 | R20: 313.07 | S20: 204537 | T20: 14831 | U20: 9.07 | V20: 4.5 | W20: 14.9 | X20: 230.5 | Y20: Method 17 | Z20: 0.0004 | AB20: FALSE | AJ20: =Z17/$H$47 -> 5.714285714e-08 | AK20: =AJ20*$I$57*20.9/(20.9-V20) -> 0.0007180278746 | AL20: =($AO20-AK20)/$AO20 -> -0.1967131243 | AM20: =AJ20*$K$54*100/$I$60 ->  | AN20: =($AO20-AM20)/$AO20 ->  | AO20: 0.0006 | AP20: pound per million British Thermal Unit (lb/MMBtu) | AQ20: FALSE | AS20: gr/scf | AT20: petroleum coke | AU20: 83.42 | AV20: coal - bituminous | AW20: 16.58
D21: =D18*B$47 -> 0.004458064516 | E21: lb/MWh | H21: 667 | I21: 1A | J21: N1_2007_PM | K21: 1AStack | N21: PM (Filterable) | O21: 2 | P21: 2007-02-28T11:07:00 | Q21: 2007-02-28T13:12:00 | R21: 313.07 | S21: 204537 | T21: 14831 | U21: 9.37 | V21: 4.6 | W21: 15 | X21: 230.8 | Y21: Method 17 | Z21: 0.0003 | AB21: FALSE | AJ21: =Z18/$H$47 -> 4.285714286e-08 | AK21: =AJ21*$I$57*20.9/(20.9-V21) -> 0.0005418247152 | AL21: =($AO21-AK21)/$AO21 -> -0.08364943032 | AM21: =AJ21*$K$54*100/$I$60 ->  | AN21: =($AO21-AM21)/$AO21 ->  | AO21: 0.0005 | AP21: pound per million British Thermal Unit (lb/MMBtu) | AQ21: FALSE | AS21: gr/scf | AT21: petroleum coke | AU21: 83.42 | AV21: coal - bituminous | AW21: 16.58
D22: 0.005349677419 | E22: lb/MWh | H22: 667 | I22: 1A | J22: N1_2007_PM | K22: 1AStack | N22: PM (Filterable) | O22: 3 | P22: 2007-02-28T13:23:00 | Q22: 2007-02-28T15:36:00 | R22: 313.07 | S22: 204537 | T22: 14831 | U22: 9.07 | V22: 4.6 | W22: 15 | X22: 224.9 | Y22: Method 17 | Z22: 0.0003 | AB22: FALSE | AJ22: =Z19/$H$47 -> 4.285714286e-08 | AK22: =AJ22*$I$57*20.9/(20.9-V22) -> 0.0005418247152 | AL22: =($AO22-AK22)/$AO22 -> 0.09695880806 | AM22: =AJ22*$K$54*100/$I$60 ->  | AN22: =($AO22-AM22)/$AO22 ->  | AO22: 0.0006 | AP22: pound per million British Thermal Unit (lb/MMBtu) | AQ22: FALSE | AS22: gr/scf | AT22: petroleum coke | AU22: 83.42 | AV22: coal - bituminous | AW22: 16.58
C23: Average | D23: =AVERAGE(D20:D22) -> 0.005052473118 | E23: lb/MWh
A24: 5_fPM_T5_R1 | B24: n/a | C24: C | D24: =AO24 -> 0.001 | E24: =AP24 -> pound per million British Thermal Unit (lb/MMBtu) | F24: Yes | G24: Method 19 doesn't provide an F factor for petcoke; RTI was unable to determine a good F factor to calculate lb/MMBtu from conc | H24: 667 | I24: 1A | J24: N1_2008_PM | K24: 1AStack | L24: 5 | M24: 1 | N24: PM (Filterable) | O24: 1 | P24: 2008-06-10T17:06:00 | Q24: 2008-06-10T19:20:00 | R24: 299.51 | S24: 201926 | T24: 14618 | U24: 10.06 | V24: 4.53 | W24: 14.86 | X24: 197.7 | Y24: Method 17 | Z24: 0.0005 | AA24: grains per dry standard cubic foot (gr/dscf) | AB24: FALSE | AF24: 3.08 | AG24: pound per hour (lb/hr) | AH24: FALSE | AO24: 0.001 | AP24: pound per million British Thermal Unit (lb/MMBtu) | AQ24: FALSE | AS24: gr/scf
A25: 5_fPM_T5_R2 | B25: n/a | C25: C | D25: =AO25 -> 0.001 | E25: pound per million British Thermal Unit (lb/MMBtu) | F25: Yes | G25: Method 19 doesn't provide an F factor for petcoke; RTI was unable to determine a good F factor to calculate lb/MMBtu from conc | H25: 667 | I25: 1A | J25: N1_2008_PM | K25: 1AStack | L25: 5 | M25: 1 | N25: PM (Filterable) | O25: 2 | P25: 2008-06-11T13:53:00 | Q25: 2008-06-11T16:02:00 | R25: 299.89 | S25: 198462 | T25: 15111.9 | U25: 10.37 | V25: 4.53 | W25: 14.47 | X25: 203.7 | Y25: Method 17 | Z25: 0.0005 | AA25: grains per dry standard cubic foot (gr/dscf) | AB25: FALSE | AF25: 2.852 | AG25: pound per hour (lb/hr) | AH25: FALSE | AO25: 0.001 | AP25: pound per million British Thermal Unit (lb/MMBtu) | AQ25: FALSE | AS25: gr/scf
A26: 5_fPM_T5_R3 | B26: n/a | C26: C | D26: 0.0012 | E26: pound per million British Thermal Unit (lb/MMBtu) | F26: Yes | G26: Method 19 doesn't provide an F factor for petcoke; RTI was unable to determine a good F factor to calculate lb/MMBtu from conc | H26: 667 | I26: 1A | J26: N1_2008_PM | K26: 1AStack | L26: 5 | M26: 1 | N26: PM (Filterable) | O26: 3 | P26: 2008-06-11T17:14:00 | Q26: 2008-06-11T19:18:00 | R26: 299.89 | S26: 198462 | T26: 15111.9 | U26: 11.2 | V26: 4.53 | W26: 14.26 | X26: 202.8 | Y26: Method 17 | Z26: 0.0007 | AA26: grains per dry standard cubic foot (gr/dscf) | AB26: FALSE | AF26: 3.636 | AG26: pound per hour (lb/hr) | AH26: FALSE | AO26: 0.0012 | AP26: pound per million British Thermal Unit (lb/MMBtu) | AQ26: FALSE | AS26: gr/scf
D27: =D24*B$47 -> 0.008916129032 | E27: lb/MWh | F27: >90 | H27: 667 | I27: 1A | J27: N1_2008_PM | K27: 1AStack | N27: PM (Filterable) | O27: 1 | P27: 2008-06-10T17:06:00 | Q27: 2008-06-10T19:20:00 | R27: 299.51 | S27: 201926 | T27: 14618 | U27: 10.06 | V27: 4.53 | W27: 14.86 | X27: 197.7 | Y27: Method 17 | Z27: 0.0005 | AB27: FALSE | AJ27: =Z24/$H$47 -> 7.142857143e-08 | AK27: =AJ27*$I$57*20.9/(20.9-V27) -> 0.0008991796841 | AL27: =($AO27-AK27)/$AO27 -> 0.1008203159 | AM27: =AJ27*$K$54*100/$I$60 ->  | AN27: =($AO27-AM27)/$AO27 ->  | AO27: 0.001 | AP27: pound per million British Thermal Unit (lb/MMBtu) | AQ27: FALSE | AS27: gr/scf | AT27: petroleum coke | AU27: 92.74 | AV27: coal - bituminous | AW27: 7.26
D28: =D25*B$47 -> 0.008916129032 | E28: lb/MWh | F28: >90 | H28: 667 | I28: 1A | J28: N1_2008_PM | K28: 1AStack | N28: PM (Filterable) | O28: 2 | P28: 2008-06-11T13:53:00 | Q28: 2008-06-11T16:02:00 | R28: 299.89 | S28: 198462 | T28: 15111.9 | U28: 10.37 | V28: 4.53 | W28: 14.47 | X28: 203.7 | Y28: Method 17 | Z28: 0.0005 | AB28: FALSE | AJ28: =Z25/$H$47 -> 7.142857143e-08 | AK28: =AJ28*$I$57*20.9/(20.9-V28) -> 0.0008991796841 | AL28: =($AO28-AK28)/$AO28 -> 0.1008203159 | AM28: =AJ28*$K$54*100/$I$60 ->  | AN28: =($AO28-AM28)/$AO28 ->  | AO28: 0.001 | AP28: pound per million British Thermal Unit (lb/MMBtu) | AQ28: FALSE | AS28: gr/scf | AT28: petroleum coke | AU28: 92.06 | AV28: coal - bituminous | AW28: 7.94
D29: 0.01069935484 | E29: lb/MWh | F29: >90 | H29: 667 | I29: 1A | J29: N1_2008_PM | K29: 1AStack | N29: PM (Filterable) | O29: 3 | P29: 2008-06-11T17:14:00 | Q29: 2008-06-11T19:18:00 | R29: 299.89 | S29: 198462 | T29: 15111.9 | U29: 11.2 | V29: 4.53 | W29: 14.26 | X29: 202.8 | Y29: Method 17 | Z29: 0.0007 | AB29: FALSE | AJ29: =Z26/$H$47 -> 1e-07 | AK29: =AJ29*$I$57*20.9/(20.9-V29) -> 0.001258851558 | AL29: =($AO29-AK29)/$AO29 -> -0.04904296477 | AM29: =AJ29*$K$54*100/$I$60 ->  | AN29: =($AO29-AM29)/$AO29 ->  | AO29: 0.0012 | AP29: pound per million British Thermal Unit (lb/MMBtu) | AQ29: FALSE | AS29: gr/scf | AT29: petroleum coke | AU29: 92.06 | AV29: coal - bituminous | AW29: 7.94
C30: Average | D30: =AVERAGE(D27:D29) -> 0.009510537634 | E30: lb/MWh
A31: 5_fPM_T6_R1 | B31: n/a | C31: C | D31: =AO31 -> 0.0008 | E31: =AP31 -> pound per million British Thermal Unit (lb/MMBtu) | F31: Yes | G31: Method 19 doesn't provide an F factor for petcoke; RTI was unable to determine a good F factor to calculate lb/MMBtu from conc | H31: 667 | I31: 1A | J31: N1_2009_PM | K31: 1AStack | L31: 5 | M31: 1 | N31: PM (Filterable) | O31: 3 | P31: 2009-05-05T15:49:00 | Q31: 2009-05-05T17:56:00 | R31: 299.96 | S31: 202348 | T31: 15031.1 | U31: 11 | V31: 4.7 | W31: 15 | X31: 197.4 | Y31: Method 17 | AB31: FALSE | AF31: 2.5 | AG31: pound per hour (lb/hr) | AH31: FALSE | AO31: 0.0008 | AP31: pound per million British Thermal Unit (lb/MMBtu) | AQ31: FALSE | AS31: gr/dscf
A32: 5_fPM_T6_R2 | B32: n/a | C32: C | D32: =AO32 -> 0.0003 | E32: pound per million British Thermal Unit (lb/MMBtu) | F32: Yes | G32: Method 19 doesn't provide an F factor for petcoke; RTI was unable to determine a good F factor to calculate lb/MMBtu from conc | H32: 667 | I32: 1A | J32: N1_2009_PM | K32: 1AStack | L32: 5 | M32: 1 | N32: PM (Filterable) | O32: 4 | P32: 2009-05-07T08:20:00 | Q32: 2009-05-07T10:55:00 | R32: 299.93 | S32: 204059 | T32: 14813 | U32: 11.5 | V32: 5.2 | W32: 14.3 | X32: 198.3 | Y32: Method 17 | AB32: FALSE | AF32: 1 | AG32: pound per hour (lb/hr) | AH32: FALSE | AO32: 0.0003 | AP32: pound per million British Thermal Unit (lb/MMBtu) | AQ32: FALSE
A33: 5_fPM_T6_R3 | B33: n/a | C33: C | D33: 0.0004 | E33: pound per million British Thermal Unit (lb/MMBtu) | F33: Yes | G33: Method 19 doesn't provide an F factor for petcoke; RTI was unable to determine a good F factor to calculate lb/MMBtu from conc | H33: 667 | I33: 1A | J33: N1_2009_PM | K33: 1AStack | L33: 5 | M33: 1 | N33: PM (Filterable) | O33: 5 | P33: 2009-05-07T11:32:00 | Q33: 2009-05-07T14:05:00 | R33: 299.93 | S33: 204059 | T33: 14813 | U33: 11.3 | V33: 5 | W33: 14.6 | X33: 198.3 | Y33: Method 17 | AB33: FALSE | AF33: 1.2 | AG33: pound per hour (lb/hr) | AH33: FALSE | AO33: 0.0004 | AP33: pound per million British Thermal Unit (lb/MMBtu) | AQ33: FALSE
D34: =D31*B$47 -> 0.007132903226 | E34: lb/MWh | F34: >90 | H34: 667 | I34: 1A | J34: N1_2009_PM | K34: 1AStack | N34: PM (Filterable) | O34: 3 | P34: 2009-05-05T15:49:00 | Q34: 2009-05-05T17:56:00 | R34: 299.96 | S34: 202348 | T34: 15031.1 | U34: 11 | V34: 4.7 | W34: 15 | X34: 197.4 | Y34: Method 17 | Z34: 0 | AB34: FALSE | AK34: =AJ34*$I$57*20.9/(20.9-V34) -> 0 | AL34: =($AO34-AK34)/$AO34 -> 1 | AM34: =AJ34*$K$54*100/$I$60 ->  | AN34: =($AO34-AM34)/$AO34 ->  | AO34: 0.0008 | AP34: pound per million British Thermal Unit (lb/MMBtu) | AQ34: FALSE | AS34: gr/dscf | AT34: petroleum coke | AU34: 90 | AV34: coal - bituminous | AW34: 10
D35: =D32*B$47 -> 0.00267483871 | E35: lb/MWh | F35: >90 | H35: 667 | I35: 1A | J35: N1_2009_PM | K35: 1AStack | N35: PM (Filterable) | O35: 4 | P35: 2009-05-07T08:20:00 | Q35: 2009-05-07T10:55:00 | R35: 299.93 | S35: 204059 | T35: 14813 | U35: 11.5 | V35: 5.2 | W35: 14.3 | X35: 198.3 | Y35: Method 17 | Z35: 0 | AB35: FALSE | AK35: =AJ35*$I$57*20.9/(20.9-V35) -> 0 | AL35: =($AO35-AK35)/$AO35 -> 1 | AM35: =AJ35*$K$54*100/$I$60 ->  | AN35: =($AO35-AM35)/$AO35 ->  | AO35: 0.0003 | AP35: pound per million British Thermal Unit (lb/MMBtu) | AQ35: FALSE | AT35: petroleum coke | AU35: 90 | AV35: coal - bituminous | AW35: 10
D36: 0.003566451613 | E36: lb/MWh | F36: >90 | H36: 667 | I36: 1A | J36: N1_2009_PM | K36: 1AStack | N36: PM (Filterable) | O36: 5 | P36: 2009-05-07T11:32:00 | Q36: 2009-05-07T14:05:00 | R36: 299.93 | S36: 204059 | T36: 14813 | U36: 11.3 | V36: 5 | W36: 14.6 | X36: 198.3 | Y36: Method 17 | Z36: 0 | AB36: FALSE | AK36: =AJ36*$I$57*20.9/(20.9-V36) -> 0 | AL36: =($AO36-AK36)/$AO36 -> 1 | AM36: =AJ36*$K$54*100/$I$60 ->  | AN36: =($AO36-AM36)/$AO36 ->  | AO36: 0.0004 | AP36: pound per million British Thermal Unit (lb/MMBtu) | AQ36: FALSE | AT36: petroleum coke | AU36: 90 | AV36: coal - bituminous | AW36: 10
C37: Average | D37: =AVERAGE(D34:D36) -> 0.004458064516 | E37: lb/MWh
H39: Data from eICR. No test report provided.
A41: Subcategory_ID | B41: 5-fPM | H41: Conversions
A42: Subcategory Desc. | B42: Petcoke | H42: 1 | I42: ppm SO2= | J42: 1.66e-07 | K42: lb/scf
A43: ORIS Code | B43: 667 | H43: 1 | I43: ppm Hg= | J43: =J42*H49/H50 -> 5.197930066e-07 | K43: lb/scf
A44: Plant Name | B44: Northside | H44: 1000 | I44: mg= | J44: 1 | K44: g
A45: Configuration ID | B45: 1A | H45: 1000000 | I45: ug= | J45: 1 | K45: g
A46: Boiler ID | H46: 454 | I46: g= | J46: 1 | K46: lb
A47: Heat Rate | B47: 8.916129032 | H47: 7000 | I47: gr= | J47: 1 | K47: lb
H48: 1 | I48: m^3= | J48: 35.3145 | K48: ft^3
H49: 200.59 | I49: Hg molecular weight
H50: 64.06 | I50: SO2 molecular weight
H52: Table 19-2 | I52: Fd | J52: Fw | K52: Fc
H53: Fuel Type | I53: dscf/MMBtu | J53: wscf/MMBtu | K53: scf/MMBtu
H54: Coal
H55: Anthracite | I55: 10100 | J55: 10540 | K55: 1970
H56: Bituminous | I56: 9780 | J56: 40640 | K56: 1800
H57: Lignite | I57: 9860 | J57: 11950 | K57: 1910
H58: Oil | I58: 9190 | J58: 10320 | K58: 1420
